{"text_format":"1","workbook":"xlsx","n_sheets":9,"sheets":["Formularz","Wyjaśnienia","Inf","Charakterystyka","Tabele","Form_zkzl","Form_zdm","jednostki organizacyjne","legenda"],"not_rendered":{"charts":0,"images":1,"macros":1,"external_links":0,"defined_names":1,"comments":0,"pivot_tables":0},"unopened":[],"bounds":{"document_bytes":16777216,"sheet_cells":100000,"rows_first":2000,"rows_last":500,"rows_between":2000,"halvings":0,"cell_chars":16384,"cell_head_chars":4096},"cells_cut":0,"cells_raw":0,"read":"whole","date_system":"1900"}

{"sheet":"Formularz","index":0,"n_rows":75,"n_cols":11,"rows_kept":75,"cut":false,"hidden":false,"merged":[[73,0,73,10],[69,0,69,2],[56,0,56,2],[57,0,57,2],[59,0,59,2],[60,0,60,2],[60,3,60,10],[63,0,63,10],[52,0,52,2],[53,0,53,2],[52,3,52,10],[53,3,53,10],[54,0,54,2],[55,0,55,2],[54,3,54,10],[55,3,55,10],[48,0,48,2],[49,0,49,2],[48,3,48,10],[49,3,49,10],[50,0,50,2],[51,0,51,2],[50,3,50,10],[51,3,51,10],[34,0,34,10],[43,0,44,2],[43,3,44,6],[45,0,45,2],[45,3,47,6],[46,0,46,2],[47,0,47,2],[35,0,35,10],[39,0,39,10],[40,0,40,10],[28,5,28,6],[28,7,28,8],[32,0,32,3],[31,0,31,2],[31,3,31,6],[31,7,31,9],[30,0,30,2],[26,0,26,2],[27,0,27,2],[27,3,27,4],[28,0,28,2],[26,3,26,4],[28,3,28,4],[27,7,27,8],[22,7,22,8],[19,5,19,6],[21,5,21,6],[20,5,20,6],[19,7,19,8],[20,7,20,8],[27,5,27,6],[21,7,21,8],[22,5,22,6],[23,5,23,6],[23,7,23,8],[26,5,26,6],[24,5,24,6],[25,7,25,8],[25,5,25,6],[24,7,24,8],[26,7,26,8],[24,3,24,4],[25,3,25,4],[21,3,21,4],[21,0,21,2],[22,0,22,2],[22,3,22,4],[24,0,24,2],[25,0,25,2],[23,0,23,2],[23,3,23,4],[18,3,18,4],[18,5,18,6],[18,0,18,2],[20,0,20,2],[20,3,20,4],[19,0,19,2],[19,3,19,4],[18,7,18,8],[13,7,13,8],[16,7,16,8],[17,0,17,2],[16,0,16,2],[14,7,14,8],[16,5,16,6],[17,3,17,4],[17,5,17,6],[17,7,17,8],[16,3,16,4],[2,0,2,10],[15,5,15,6],[15,0,15,2],[13,0,13,2],[13,3,13,4],[13,5,13,6],[14,0,14,2],[14,3,14,4],[14,5,14,6],[15,3,15,4],[12,0,12,2],[12,3,12,4],[12,5,12,6],[15,7,15,8],[11,7,11,8],[11,0,11,2],[11,3,11,4],[11,5,11,6],[6,0,7,2],[8,0,8,2],[8,3,10,6],[9,0,9,2],[10,0,10,2],[43,7,47,10],[56,3,56,10],[57,3,57,10],[59,3,59,10],[3,0,3,10],[6,3,6,6],[6,7,10,10],[30,3,30,6],[30,7,30,10],[12,7,12,8],[74,0,74,10],[61,3,61,10],[69,3,69,6],[69,7,69,10],[61,0,61,2],[71,0,71,3],[70,0,70,2],[70,3,70,6],[70,7,70,10],[71,7,71,10]]}
[]
[]
["INFORMACJA O STANIE MIENIA KOMUNALNEGO"]
["MIASTA POZNANIA NA DZIEŃ 31 GRUDNIA 2008 R."]
["Tab. nr 1"]
["Pozostałe jednostki organizacyjne",null,null,null,null,null,null,"Nr KSAT :",{"$f":"VLOOKUP(Inf!E1,ik,5)","v":491}]
["Nazwa i adres jednostki sprawozdawczej - pieczęć",null,null,"AKTYWA TRWAŁE",null,null,null,"Urząd Miasta Poznania \nWydział Gospodarki Nieruchomościami\nul. Gronowa 20\n61-655 Poznań"]
[]
[{"$f":"VLOOKUP(Inf!E1,ik,2)","v":"Estrada Poznańska"},null,null,"(wartość składników majątkowych będących własnością Miasta Poznania, na stanie miejskich jednostek organizacyjnych i komunalnych osób prawnych)"]
[{"$f":"VLOOKUP(Inf!E1,ik,3)","v":"ul. Masztalarska 8"}]
[{"$f":"VLOOKUP(Inf!E1,ik,4)","v":"61-767 Poznań"}]
["Nazwa i symbol klasyfikacji rodzajowej",null,null,"Wartość brutto \n(w zł)",null,"Wartość umorzenia \n(w zł)",null,"Wartość netto \n(w zł)",null,"Ilość","Jm"]
["Grunty \n(konto 011 - gr. 0)",null,null,1137239,null,0,null,{"$f":"D13-F13","v":1137239},null,1,"dz."]
["Budynki i lokale \n(konto 011 - gr. 1)",null,null,2704372,null,2121413,null,{"$f":"D14-F14","v":582959},null,1,"szt."]
["Obiekty inżynierii lądowej \ni wodnej (konto 011 - gr. 2)",null,null,null,null,null,null,0,null,0,"szt."]
["Maszyny i urządzenia techniczne \n(konto 011 - gr. 3-6)",null,null,558294,null,458376,null,99918,null,1,"szt."]
["Środki transportu \n(konto 011 - gr. 7)",null,null,null,null,null,null,0,null,null,"szt."]
["Narzędzia, przyrządy, ruchomości \ni wyposażenie (konto 011 - gr. 8)",null,null,195115,null,158763,null,36352]
["Inwentarz żywy \n(konto 011 - gr. 9)",null,null,null,null,null,null,0]
["Pozostałe środki trwałe \n(konto 013)",null,null,null,null,{"$f":"D20","v":0},null,0]
["Zbiory biblioteczne                        (konto 014)",null,null,null,null,{"$f":"D21","v":0},null,0]
["Mienie zlikwidowanych jednostek \n(konto 015)",null,null,null,null,null,null,{"$f":"D22-F22","v":0}]
["Dobra kultury \n(konto 016)",null,null,null,null,0,null,{"$f":"D23-F23","v":0}]
["Uzbrojenie i sprzęt wojskowy\n(konto 017)",null,null,null,null,null,null,0]
["Wartości niematerialne i prawne (konto 020)",null,null,49358,null,35420,null,13938]
["Długoterminowe aktywa finansowe      (konto 030)",null,null,0,null,0,null,0]
["Inwestycje - środki trwałe w budowie        (konto 080,081,082,083)",null,null,null,null,0,null,{"$f":"D27-F27","v":0}]
["Należności długoterminowe\n(konto 226)",null,null,null,null,0,null,0]
["AKTYWA TRWAŁE RAZEM",null,null,{"$f":"SUM(D13:E28)","v":4644378},null,{"$f":"SUM(F13:G28)","v":2773972},null,{"$f":"SUM(H13:I28)","v":1870406}]
[]
["061 8528833",null,null,"Grażyna Jabłońska  30-05-2009",null,null,null,"Tomasz Karczewski"]
["Pieczątka imienna i podpis Gł. Księgowego",null,null,"Sporządził dnia",null,null,null,"Pieczątka imienna i podpis"]
["Nr telefonu, pod którym można uzyskać wyjaśnienia",null,null,null,null,null,null,null,"dyrektora/kierownika jednostki"]
[]
["OSTATECZNY TERMIN NADSYŁANIA SPRAWOZDAŃ - 31 MAJA 2009 R."]
["(zgodnie z Uchwałą Zarządu Miasta Poznania nr 112a/2000 z dn. 8 lutego 2000r.)"]
[]
[]
[]
["INFORMACJA O STANIE MIENIA KOMUNALNEGO"]
["MIASTA POZNANIA NA DZIEŃ 31 GRUDNIA 2009r."]
["Tab. nr 1.1"]
["Pozostałe jednostki organizacyjne",null,null,null,null,null,null,"Nr KSAT :",{"$f":"VLOOKUP(Inf!E1,ik,5)","v":491}]
["Nazwa i adres jednostki sprawozdawczej - pieczęć",null,null,"AKTYWA OBROTOWE",null,null,null,"Urząd Miasta Poznania \nWydział Gospodarki Nieruchomościami\nul. Gronowa 20\n61-655 Poznań"]
[]
[{"$f":"VLOOKUP(Inf!E1,ik,2)","v":"Estrada Poznańska"},null,null,"(wartość składników majątkowych będących własnością Miasta Poznania, na stanie miejskich jednostek organizacyjnych i komunalnych osób prawnych)"]
[{"$f":"VLOOKUP(Inf!E1,ik,3)","v":"ul. Masztalarska 8"}]
[{"$f":"VLOOKUP(Inf!E1,ik,4)","v":"61-767 Poznań"}]
["Nazwa dla pozycji 1-5",null,null,"Wartość (w zł)"]
["1.   Zapasy",null,null,0]
["2.   Należności krótkoterminowe",null,null,149241]
["3.   Środki pieniężne\n      (suma 3.1+3.2+3.3)",null,null,{"$f":"SUM(D53:I55)","v":875501}]
["3.1 Środki pieniężne w kasie",null,null,17833]
["3.2 Środki pieniężne na \n      rachunkach bankowych",null,null,857668]
["3.3 Środki pieniężne - inne"]
["4.   Krótkoterminowe papiery\n      wartościowe"]
["5.   Rozliczenia międzyokresowe",null,null,67029]
["AKTYWA OBROTOWE RAZEM",null,null,{"$f":"SUM(D50:I51,D53:I57)","v":1091771}]
[]
["Aktywa trwałe netto",null,null,{"$f":"H29","v":1870406}]
["Aktywa obrotowe",null,null,{"$f":"D58","v":1091771}]
["SUMA AKTYWÓW",null,null,{"$f":"SUM(D60:I61)","v":2962177}]
[]
[]
[]
[]
[]
[]
[]
["061 8528833",null,null,"Grażyna Jabłońska  30-05-2009",null,null,null,"Tomasz Karczewski"]
["Pieczątka imienna i podpis Gł. Księgowego",null,null,"Sporządził dnia",null,null,null,"Pieczątka imienna i podpis"]
["Nr telefonu, pod którym można uzyskać wyjaśnienia",null,null,null,null,null,null,"dyrektora/kierownika jednostki"]
[]
["OSTATECZNY TERMIN NADSYŁANIA SPRAWOZDAŃ - 31 MAJA 2009 R."]
["(zgodnie z Uchwałą Zarządu Miasta Poznania nr 112a/2000 z dn. 8 lutego 2000r.)"]

{"sheet":"Wyjaśnienia","index":1,"n_rows":26,"n_cols":4,"rows_kept":26,"cut":false,"hidden":false,"merged":[[1,3,3,3],[24,1,24,2],[23,1,23,2],[0,1,0,2],[1,1,3,2]]}
["Nazwa i adres jednostki sprawozdawczej\n(wraz z pieczecią)","Informacja o stanie mienia komunalnego\nMiasta Poznania na dzień 00-01-1900 r.",null,"Urząd Miasta Poznania"]
[null,"WYJAŚNIENIA ZMIAN WARTOŚCI MAJĄTKU\n(Aktywa trwałe)",null,"Wydział Gospodarki Nieruchomościami\nul. Gronowa 20\n61-655 Poznań"]
[]
[]
["Wyszczególnienie","Wartość brutto\nwg stanu na\n31-12-2007 r. [w zł]","Wartość brutto\nwg stanu na\n31-12-2008 r. [w zł]","Wyjaśnienia zmian (zmniejszenia, zwiększenia)"]
["Grunty\n(konto 011 - grupa 0)"]
["Budynki i lokale\n(konto 011 - grupa 1)"]
["Obiekty inżynierii lądowej i wodnej\n(konto 011 - grupa 2)"]
["Maszyny i urządzenia techniczne\n(konto 011 - grupa 3 do 6)"]
["Środki transportu\n(konto 011 - grupa 7)"]
["Narzedzia, przyrządy, ruchomości\ni wyposażenie (konto 011 - grupa 8)"]
["Inwentarz żywy\n(konto 011 - grupa 9)"]
["Pozostałe środki trwałe\n(konto 013)"]
["Zbiory biblioteczne\n(konto 014)"]
["Mienie zlikwidowanych jednostek\n(konto 015)"]
["Dobra kultury\n(konto 016)"]
["Uzbrojenie i sprzęt wojskowy\n(konto 017)"]
["Wartości niematerialne i prawne\n(konto 020)"]
["Długoterminowe aktywa finansowe\n(konto 030)"]
["Inwestycje - środki trwałe w budowie\n(konto 080)"]
["Należności długoterminowe\n(konto 226)"]
["R A Z E M",{"$f":"SUM(B6:B21)","v":0},{"$f":"SUM(C6:C21)","v":0}]
[]
["a","a 30-06-2006",null,"a"]
["Nr telefonu, pod którym można uzyskać","Sporządził dnia",null,"Pieczątka imienna i podpis osoby"]
["wyjaśnienia dotyczące sprawozdania",null,null,"działającej w imieniu sprawozdawcy"]

{"sheet":"Inf","index":2,"n_rows":39,"n_cols":8,"rows_kept":39,"cut":false,"hidden":true,"merged":[]}
["Data sprawozdania:","31-12-2008",null,"Łącze :",1,"Uwagi uzupełniające do ankiety"]
["Mienie użyczone","N",null,false,false]
["Ogród zoologiczny","N",null,false,false]
["ZKZL ankieta dodatkowa","N",null,false,false]
["ZDM ankieta dodatkowa","N",null,false,false]
["ZKZL\nCharakterystyka\nkomunalnego \nzasobu lokalowego","N",null,false,false]
["Jednostka organizacyjna ",{"$f":"VLOOKUP(Inf!E1,ik,5)","v":491},null,false,false]
["Sporządził","Grażyna Jabłońska",null,null,false]
["Telefon kontaktowy","061 8528833"]
["Kierownik","Tomasz Karczewski"]
["Data sporządzenia","30-05-2009"]
["Jednostka pełni zadania powiatu","Nie"]
[]
["Klasyfikacja rodzajowa"]
["Kod Ksatowski","Nazwa elementu listy","Brutto","Umorzenie","Netto","Wyjaśnienie zmian","Ilość","Jm"]
["GRU","Grunty",0,0,0,null,0,"dz."]
["B","Budynki i lokale",0,0,0,null,0,"szt."]
["OI","Obiekty inżynierii lądowej i wodnej",0,0,0,null,0,"szt."]
["MU","Maszyny i urządzenia techniczne",0,0,0,null,0,"szt."]
["ST","Środki transportu",0,0,0,null,0,"szt."]
["NPW","Narzędzia, przyrządy, ruchomości\ni wyposażenie",0,0,0,null,0]
["INW","Inwentarz żywy",0,0,0,null,0]
["PST","Pozostałe środki trwałe",0,0,0,null,0]
["ZB","Zbiory biblioteczne",0,0,0,null,0]
["MZJ","Mienie zlikwidowanych jednostek",0,0,0,null,0]
["DK","Dobra kultury",0,0,0,null,0]
["USW","Uzbrojenie i sprzęt wojskowy",0,0,0,null,0]
["WNP","Wartości niematerialne i prawne",0,0,0,null,0]
["DAF","Długoterminowe aktywa finansowe",0,0,0,null,0]
["STB","Inwestycje - środki trwałe w budowie",0,0,0,null,0]
["ND","Należności długoterminowe",0,0,0,null,0]
["XZ","1. Zapasy",0,0,0,null,0]
["XNK","2. Należności krótkoterminowe",0,0,0,null,0]
["XP","3. Środki pieniężne",0,0,0,null,0]
["XPK","3.1 Środki pieniężne w kasie",0,0,0,null,0]
["XPR","3.2 Środki pieniężne na rachunkach bankowych",0,0,0,null,0]
["XPI","3.3 Środki pieniężne - inne",0,0,0,null,0]
["XKP","4. Krótkoterminowe papiery wartościowe",0,0,0,null,0]
["XRM","5. Rozliczenia międzyokresowe",0,0,0,null,0]

{"sheet":"Charakterystyka","index":3,"n_rows":15,"n_cols":7,"rows_kept":15,"cut":false,"hidden":true,"merged":[[3,0,3,1],[4,0,4,1],[7,0,7,1],[5,0,6,0],[14,5,14,6],[12,2,12,4],[13,2,13,4],[14,0,14,1],[0,5,0,6],[1,5,1,6],[12,0,12,1],[13,0,13,1],[12,5,12,6],[13,5,13,6],[0,0,0,1],[1,0,1,1],[0,2,0,4],[1,2,1,4]]}
["Nazwa i adres jednostki sprawozdawczej\n(wraz z pieczecią)",null,"Informacja o stanie mienia komunalnego\nMiasta Poznania na dzień \n2008-12-31 r.",null,null,"Urząd Miasta Poznania"]
["Zarząd Komunalnych Zasobów Lokalowych\nPl. Kolegiacki 17\n61-841 Poznań",null,"CHARAKTERYSTYKA\nKOMUNALNEGO ZASOBU LOKALOWEGO",null,null,"Wydział Mienia Komunalnego\nul. Gronowa 20\n61-655 Poznań"]
[]
["Wyszczególnienie",null,"Ilość budynków","Ilość lokali\nmieszkalnych","Ilość lokali\nużytkowych","Powierzchnia lokali\nmieszkalnych [m²]","Powierzchnia lokali\nużytkowych [m²]"]
["Budynki komunalne"]
["Budynki wspólnot\nmieszkaniowych","z większościowym\nudziałem gminy"]
[null,"z mniejszościowym\nudziałem gminy"]
["Ogółem",null,{"$f":"SUM(C5:C7)","v":0},{"$f":"SUM(D5:D7)","v":0},{"$f":"SUM(E5:E7)","v":0},{"$f":"SUM(F5:F7)","v":0},{"$f":"SUM(G5:G7)","v":0}]
[]
[]
[]
[]
[]
["Nr telefonu, pod którym można uzyskać",null,"Sporządził dnia",null,null,"Pieczątka imienna i podpis osoby"]
["wyjaśnienia dotyczące sprawozdania",null,null,null,null,"działającej w imieniu sprawozdawcy"]

{"sheet":"Tabele","index":4,"n_rows":75,"n_cols":11,"rows_kept":75,"cut":false,"hidden":true,"merged":[[57,0,57,2],[56,3,56,10],[71,7,71,10],[61,0,61,2],[60,0,60,2],[59,0,59,2],[20,0,20,2],[50,0,50,2],[49,0,49,2],[26,0,26,2],[21,0,21,2],[27,0,27,2],[28,0,28,2],[30,0,30,2],[14,0,14,2],[15,0,15,2],[16,0,16,2],[17,0,17,2],[18,0,18,2],[19,0,19,2],[26,3,26,4],[26,5,26,6],[26,7,26,8],[22,0,22,2],[22,3,22,4],[22,5,22,6],[22,7,22,8],[25,7,25,8],[23,0,23,2],[23,3,23,4],[17,5,17,6],[17,3,17,4],[17,7,17,8],[18,3,18,4],[18,7,18,8],[20,3,20,4],[19,3,19,4],[20,5,20,6],[20,7,20,8],[23,7,23,8],[23,5,23,6],[21,3,21,4],[21,5,21,6],[21,7,21,8],[14,3,14,4],[15,3,15,4],[15,5,15,6],[16,3,16,4],[16,5,16,6],[14,5,14,6],[11,3,11,4],[11,5,11,6],[12,3,12,4],[12,5,12,6],[12,0,12,2],[13,0,13,2],[24,7,24,8],[6,0,7,2],[8,0,8,2],[8,3,10,6],[10,0,10,2],[9,0,9,2],[6,3,6,6],[13,3,13,4],[13,5,13,6],[11,0,11,2],[25,0,25,2],[25,3,25,4],[25,5,25,6],[24,0,24,2],[24,3,24,4],[24,5,24,6],[35,0,35,10],[39,0,39,10],[27,3,27,4],[27,5,27,6],[27,7,27,8],[28,3,28,4],[28,7,28,8],[28,5,28,6],[57,3,57,10],[59,3,59,10],[51,3,51,10],[52,3,52,10],[53,3,53,10],[54,3,54,10],[2,0,2,10],[3,0,3,10],[55,3,55,10],[11,7,11,8],[12,7,12,8],[13,7,13,8],[14,7,14,8],[15,7,15,8],[16,7,16,8],[30,3,30,6],[31,0,31,2],[31,3,31,6],[31,7,31,9],[34,0,34,10],[32,0,32,3],[6,7,10,10],[30,7,30,10],[19,5,19,6],[19,7,19,8],[18,5,18,6],[40,0,40,10],[70,3,70,6],[46,0,46,2],[43,7,47,10],[48,3,48,10],[49,3,49,10],[47,0,47,2],[45,3,47,6],[48,0,48,2],[43,0,44,2],[43,3,44,6],[63,0,63,10],[50,3,50,10],[45,0,45,2],[52,0,52,2],[51,0,51,2],[54,0,54,2],[53,0,53,2],[56,0,56,2],[55,0,55,2],[74,0,74,10],[60,3,60,10],[61,3,61,10],[69,0,69,2],[70,0,70,2],[69,3,69,6],[69,7,69,10],[70,7,70,10],[73,0,73,10],[71,0,71,3]]}
[]
[]
["INFORMACJA O STANIE MIENIA KOMUNALNEGO"]
["MIASTA POZNANIA NA DZIEŃ 31 GRUDNIA 2008 R."]
["Tab. nr 1"]
[null,null,null,null,null,null,null,"Nr KSAT :"]
["Nazwa i adres jednostki sprawozdawczej - pieczęć",null,null,"AKTYWA TRWAŁE",null,null,null,"Urząd Miasta Poznania \nWydział Gospodarki Nieruchomościami\nul. Gronowa 20\n61-655 Poznań"]
[]
[null,null,null,"(wartość składników majątkowych będących własnością Miasta Poznania, na stanie miejskich jednostek organizacyjnych i komunalnych osób prawnych)"]
[]
[]
["Nazwa i symbol klasyfikacji rodzajowej",null,null,"Wartość brutto \n(w zł)",null,"Wartość umorzenia \n(w zł)",null,"Wartość netto \n(w zł)",null,"Ilość","Jm"]
["Grunty \n(konto 011 - gr. 0)",null,null,null,null,null,null,{"$f":"D13-F13","v":0},null,null,"dz."]
["Budynki i lokale \n(konto 011 - gr. 1)",null,null,null,null,null,null,{"$f":"D14-F14","v":0},null,null,"szt."]
["Obiekty inżynierii lądowej \ni wodnej (konto 011 - gr. 2)",null,null,null,null,null,null,0,null,null,"szt."]
["Maszyny i urządzenia techniczne \n(konto 011 - gr. 3-6)",null,null,null,null,null,null,0,null,null,"szt."]
["Środki transportu \n(konto 011 - gr. 7)",null,null,null,null,null,null,0,null,null,"szt."]
["Narzędzia, przyrządy, ruchomości \ni wyposażenie (konto 011 - gr. 8)",null,null,null,null,null,null,0]
["Inwentarz żywy \n(konto 011 - gr. 9)",null,null,null,null,null,null,0]
["Pozostałe środki trwałe \n(konto 013)",null,null,null,null,{"$f":"D20","v":0},null,{"$f":"D20-F20","v":0}]
["Zbiory biblioteczne                        (konto 014)",null,null,null,null,{"$f":"D21","v":0},null,0]
["Mienie zlikwidowanych jednostek \n(konto 015)",null,null,null,null,null,null,{"$f":"D22-F22","v":0}]
["Dobra kultury \n(konto 016)",null,null,null,null,0,null,{"$f":"D23-F23","v":0}]
["Uzbrojenie i sprzęt wojskowy\n(konto 017)",null,null,null,null,null,null,0]
["Wartości niematerialne i prawne (konto 020)",null,null,null,null,null,null,0]
["Długoterminowe aktywa finansowe      (konto 030)",null,null,null,null,0,null,0]
["Inwestycje - środki trwałe w budowie        (konto 080,081,082,083)",null,null,null,null,0,null,{"$f":"D27-F27","v":0}]
["Należności długoterminowe\n(konto 226)",null,null,null,null,0,null,0]
["AKTYWA TRWAŁE RAZEM",null,null,{"$f":"SUM(D13:E28)","v":0},null,{"$f":"SUM(F13:G28)","v":0},null,{"$f":"SUM(H13:I28)","v":0}]
[]
[]
["Pieczątka imienna i podpis Gł. Księgowego",null,null,"Sporządził dnia",null,null,null,"Pieczątka imienna i podpis"]
["Nr telefonu, pod którym można uzyskać wyjaśnienia",null,null,null,null,null,null,null,"dyrektora/kierownika jednostki"]
[]
["OSTATECZNY TERMIN NADSYŁANIA SPRAWOZDAŃ - 31 MAJA 2009 R."]
["(zgodnie z Uchwałą Zarządu Miasta Poznania nr 112a/2000 z dn. 8 lutego 2000r.)"]
[]
[]
[]
["INFORMACJA O STANIE MIENIA KOMUNALNEGO"]
["MIASTA POZNANIA NA DZIEŃ 31 GRUDNIA 2009r."]
["Tab. nr 1.1"]
[null,null,null,null,null,null,null,"Nr KSAT :"]
["Nazwa i adres jednostki sprawozdawczej - pieczęć",null,null,"AKTYWA OBROTOWE",null,null,null,"Urząd Miasta Poznania \nWydział Gospodarki Nieruchomościami\nul. Gronowa 20\n61-655 Poznań"]
[]
[null,null,null,"(wartość składników majątkowych będących własnością Miasta Poznania, na stanie miejskich jednostek organizacyjnych i komunalnych osób prawnych)"]
[]
[]
["Nazwa dla pozycji 1-5",null,null,"Wartość (w zł)"]
["1.   Zapasy"]
["2.   Należności krótkoterminowe"]
["3.   Środki pieniężne\n      (suma 3.1+3.2+3.3)",null,null,{"$f":"SUM(D53:I55)","v":0}]
["3.1 Środki pieniężne w kasie"]
["3.2 Środki pieniężne na \n      rachunkach bankowych"]
["3.3 Środki pieniężne - inne"]
["4.   Krótkoterminowe papiery\n      wartościowe"]
["5.   Rozliczenia międzyokresowe"]
["AKTYWA OBROTOWE RAZEM",null,null,{"$f":"SUM(D50:I51,D53:I57)","v":0}]
[]
["Aktywa trwałe netto",null,null,{"$f":"H29","v":0}]
["Aktywa obrotowe",null,null,{"$f":"D58","v":0}]
["SUMA AKTYWÓW",null,null,{"$f":"SUM(D60:I61)","v":0}]
[]
["Tytuł(y) użytkowania gruntów:"]
[]
[]
[]
[]
[]
[]
["Pieczątka imienna i podpis Gł. Księgowego",null,null,"Sporządził dnia",null,null,null,"Pieczątka imienna i podpis"]
["Nr telefonu, pod którym można uzyskać wyjaśnienia",null,null,null,null,null,null,"dyrektora/kierownika jednostki"]
[]
["OSTATECZNY TERMIN NADSYŁANIA SPRAWOZDAŃ - 31 MAJA 2009 R."]
["(zgodnie z Uchwałą Zarządu Miasta Poznania nr 112a/2000 z dn. 8 lutego 2000r.)"]

{"sheet":"Form_zkzl","index":5,"n_rows":41,"n_cols":8,"rows_kept":41,"cut":false,"hidden":true,"merged":[[37,6,37,8],[31,0,31,2],[31,3,31,4],[31,5,31,6],[31,7,31,8],[39,0,39,8],[40,0,40,8],[36,0,36,2],[36,3,36,5],[36,6,36,8],[37,0,37,2],[29,0,29,2],[29,3,29,4],[29,5,29,6],[29,7,29,8],[30,0,30,2],[30,3,30,4],[30,5,30,6],[30,7,30,8],[26,0,26,8],[27,0,27,8],[28,0,28,2],[28,3,28,4],[28,5,28,6],[28,7,28,8],[11,5,11,6],[11,7,11,8],[12,7,12,8],[12,0,12,2],[12,3,12,4],[12,5,12,6],[11,0,11,2],[11,3,11,4],[18,0,18,8],[20,0,20,2],[20,3,20,4],[20,5,20,6],[20,7,20,8],[19,0,19,8],[9,5,9,6],[9,7,9,8],[10,3,10,4],[10,5,10,6],[10,7,10,8],[9,0,9,2],[10,0,10,2],[9,3,9,4],[0,0,0,8],[1,0,1,8],[4,0,5,2],[4,7,8,8],[6,0,6,2],[7,0,7,2],[4,3,8,6],[8,0,8,2],[32,0,32,2],[32,3,32,4],[32,5,32,6],[32,7,32,8],[35,0,35,2],[35,3,35,5],[35,6,35,8],[23,0,23,2],[23,3,23,4],[23,5,23,6],[23,7,23,8],[24,0,24,2],[24,3,24,4],[24,5,24,6],[24,7,24,8],[21,0,21,2],[21,3,21,4],[21,5,21,6],[21,7,21,8],[22,0,22,2],[22,3,22,4],[22,5,22,6],[22,7,22,8],[15,0,15,2],[15,3,15,4],[15,5,15,6],[15,7,15,8],[16,0,16,2],[16,3,16,4],[16,5,16,6],[16,7,16,8],[13,5,13,6],[13,7,13,8],[14,0,14,2],[14,3,14,4],[14,5,14,6],[14,7,14,8],[13,0,13,2],[13,3,13,4]]}
["INFORMACJA O STANIE MIENIA KOMUNALNEGO"]
["MIASTA POZNANIA NA DZIEŃ 31 GRUDNIA 2008 R."]
[]
[]
["Nazwa i adres jednostki sprawozdawczej - pieczęć",null,null,"BUDYNKI KOMUNALNE",null,null,null,"Urząd Miasta Poznania \nWydział Mienia \nKomunalnego\nul. Gronowa 20\n61-655 Poznań"]
[]
["Zarząd Komunalnych Zasobów Lokalowych"]
["Pl. Kolegiacki 17"]
["61-841 Poznań"]
["Nazwa i symbol klasyfikacji rodzajowej",null,null,"Wartość brutto środków trwałych (w zł)",null,"Wartość umorzenia środków trwałych (w zł)",null,"Wartość netto środków trwałych  (w zł)"]
["Budynki i lokale (gr. 1)",null,null,null,null,null,null,{"$f":"D11-F11","v":0}]
["w użyczeniu",null,null,null,null,null,null,0]
["spółdzielcze własnościowe \nprawo do lokalu",null,null,null,null,null,null,0]
["Obiekty inżynierii lądowej \ni wodnej (gr. 2)",null,null,null,null,null,null,0]
["Maszyny i urządzenia techniczne \n(gr. 3-6)",null,null,null,null,null,null,0]
["Narzędzia, przyrządy, ruchomości i wyposażenie (gr. 8)",null,null,null,null,null,null,0]
["RAZEM",null,null,{"$f":"SUM(D11:E16)","v":0},null,{"$f":"SUM(F11:G16)","v":0},null,{"$f":"SUM(H11:I16)","v":0}]
[]
["BUDYNKI WSPÓLNOT MIESZKANIOWYCH"]
["(będących udziałem Miasta Poznania)"]
["Budynki i lokale (gr. 1)",null,null,null,null,null,null,{"$f":"D21-F21","v":0}]
["Obiekty inżynierii lądowej \ni wodnej (gr. 2)",null,null,null,null,null,null,{"$f":"D22-F22","v":0}]
["Maszyny i urządzenia techniczne \n(gr. 3-6)",null,null,null,null,null,null,{"$f":"D23-F23","v":0}]
["Narzędzia, przyrządy, ruchomości \ni wyposażenie (gr. 8)",null,null,null,null,null,null,{"$f":"D24-F24","v":0}]
["RAZEM",null,null,{"$f":"SUM(D21:E24)","v":0},null,{"$f":"SUM(F21:G24)","v":0},null,{"$f":"SUM(H21:I24)","v":0}]
[]
["WSPÓŁWŁASNOŚCI"]
["(będące udziałem Miasta Poznania)"]
["Budynki i lokale (gr. 1)",null,null,null,null,null,null,{"$f":"D29-F29","v":0}]
["Obiekty inżynierii lądowej \ni wodnej (gr. 2)",null,null,null,null,null,null,{"$f":"D30-F30","v":0}]
["Maszyny i urządzenia techniczne \n(gr. 3-6)",null,null,null,null,null,null,{"$f":"D31-F31","v":0}]
["Narzędzia, przyrządy, ruchomości \ni wyposażenie (gr. 8)",null,null,null,null,null,null,{"$f":"D32-F32","v":0}]
["RAZEM",null,null,{"$f":"SUM(D29:E32)","v":0},null,{"$f":"SUM(F29:G32)","v":0},null,{"$f":"SUM(H29:I32)","v":0}]
[]
[]
[]
["Nr telefonu, pod którym można",null,null,"Sporządził dnia",null,null,"Pieczątka imienna i podpis"]
["uzyskać dodatkowe wyjaśnienia",null,null,null,null,null,"dyrektora/kierownika jednostki"]
[]
["OSTATECZNY TERMIN NADSYŁANIA SPRAWOZDAŃ - 31 MAJA 2009 R."]
["(zgodnie z Uchwałą Zarządu Miasta Poznania nr 112a/2000 z dn. 8 lutego 2000r.)"]

{"sheet":"Form_zdm","index":6,"n_rows":41,"n_cols":9,"rows_kept":41,"cut":false,"hidden":true,"merged":[[25,7,25,8],[34,0,34,2],[36,0,36,2],[34,3,34,5],[34,6,34,8],[35,0,35,2],[35,3,35,5],[35,6,35,8],[23,1,23,2],[23,3,23,4],[23,7,23,8],[39,0,39,8],[40,0,40,8],[24,1,24,2],[24,3,24,4],[24,7,24,8],[25,1,25,2],[25,3,25,4],[21,1,21,2],[21,3,21,4],[21,7,21,8],[22,1,22,2],[22,3,22,4],[22,7,22,8],[14,0,14,1],[19,1,20,2],[19,3,20,4],[19,5,19,6],[17,3,17,4],[19,7,20,8],[0,0,0,8],[1,0,1,8],[7,0,8,0],[7,1,8,1],[5,3,5,4],[7,2,7,3],[7,4,7,5],[7,6,7,8]]}
["INFORMACJA O STANIE MIENIA KOMUNALNEGO"]
["MIASTA POZNANIA NA DZIEŃ 31 GRUDNIA 2008 R."]
[]
[]
[null,"Tab.3.","Charakterystyka dróg administrowanych przez Zarząd Dróg Miejskich w Poznaniu"]
[null,null,"wg stanu na","2008-12-31 r."]
[]
["Lp.","Dzielnica","Powierzchnia (m²)",null,"Długość (mb)",null,"W tym drogi gminne i powiatowe (mb)"]
[null,null,"drogi gminne i powiatowe","pozostałe","drogi gminne i powiatowe","pozostałe","oświet-lone","nawierzchnia twarda","nawierzchnia gruntowa"]
[1,"Stare Miasto"]
[2,"Nowe Miasto"]
[3,"Wilda"]
[4,"Jeżyce"]
[5,"Grunwald"]
["Razem",null,{"$f":"SUM(C10:C14)","v":0},0,0,0,0,0,0]
[]
[null,"Tab.4.","Wartość dróg administrowanych przez Zarząd Dróg Miejskich w Poznaniu"]
[null,null,"wg stanu na","2008-12-31 r. (w zł)."]
[]
[null,"Kategoria dróg",null,"Wartość brutto",null,"Wartość umorzenia",null,"Wartość netto"]
[null,null,null,null,null,"[zł]","%"]
[null,"Wartość dróg w ewidencji bilansowej w tym :",null,null,null,null,{"$f":"IF(D22=\"\",\"\",100*F22/D22)","v":""},{"$f":"D22-F22","v":0}]
[null,"Drogi gminne",null,null,null,null,{"$f":"IF(D23=\"\",\"\",100*F23/D23)","v":""},{"$f":"D23-F23","v":0}]
[null,"Drogi powiatowe",null,null,null,null,{"$f":"IF(D24=\"\",\"\",100*F24/D24)","v":""},{"$f":"D24-F24","v":0}]
[null,"Wartość dróg w ewidencji pozabilansowej",null,null,null,null,{"$f":"IF(D25=\"\",\"\",100*F25/D25)","v":""},{"$f":"D25-F25","v":0}]
[null,"Razem",null,{"$f":"SUM(D22,D25)","v":0},null,{"$f":"SUM(F22,F25)","v":0},{"$f":"IF(D26=0,\"\",100*F26/D26)","v":""},{"$f":"D26-F26","v":0}]
[]
[]
[]
[]
[]
[]
[]
[]
[]
["Nr telefonu, pod którym można",null,null,"Sporządził dnia",null,null,"Pieczątka imienna i podpis"]
["uzyskać dodatkowe wyjaśnienia",null,null,null,null,null,null,"dyrektora/kierownika jednostki"]
[]
[]
["OSTATECZNY TERMIN NADSYŁANIA SPRAWOZDAŃ - 31 MAJA 2009 R."]
["(zgodnie z Uchwałą Zarządu Miasta Poznania nr 112a/2000 z dn. 8 lutego 2000r.)"]

{"sheet":"jednostki organizacyjne","index":7,"n_rows":376,"n_cols":13,"rows_kept":376,"cut":false,"hidden":true,"merged":[]}
["Id","Nazwa ","Adres1","Adres 2","Ksat","Kod1","Kod2","Kod3",null,"Nr KSAT","Nazwa MJO","Adres MJO","Adres2 MJO"]
[null,"Straż Miejska Miasta Poznania","Plac Kolegiacki 17","61-841 Poznań",34892,0,0,null,null,498,"Biblioteka Raczyńskich","Plac Wolności 19","61-739 Poznań"]
[null,"Zarząd Dróg Miejskich","ul. Wilczak 16","61-623 Poznań",428,0,1,null,null,493,"Centrum Kultury Zamek","ul. Św. Marcin 80/82","61-809 Poznań"]
[null,"Zarząd Komunalnych Zasobów Lokalowych","ul. Matejki 57","60-770 Poznań",429,0,2,null,null,497,"Centrum Sztuki Dziecka w Poznaniu","ul. Św. Marcin 80/82","61-809 Poznań"]
[null,"Miejska Pracownia Urbanistyczna","ul. Prusa 3","60-819 Poznań",442,1,1,null,null,491,"Estrada Poznańska","ul. Masztalarska 8","61-767 Poznań"]
[null,"Palmiarnia Poznańska","ul. Matejki 18","60-767 Poznań",424,1,1,null,null,495,"Galeria Miejska \"Arsenał\"","Stary Rynek 3","61-722 Poznań"]
[null,"Urząd Miasta Poznania","Plac Kolegiacki 17","61-841 Poznań",163,1,1,null,null,499,"Muzeum Archeologiczne w Poznaniu","ul. Wodna 27","61-781 Poznań"]
[null,"Usługi Komunalne","ul. Słowackiego 43","60-521 Poznań",427,1,1,null,null,496,"Dom Kultury \"Stokrotka\"","ul. Cyniowa 11","60-175 Poznań"]
[null,"Zarząd Dróg Miejskich","ul. Wilczak 16","61-623 Poznań",428,1,1,null,null,33693,"Poznański Chór Chłopięcy","ul. Cegielskiego 1","61-862 Poznań"]
[null,"Zarząd Geodezji i Katastru Miejskiego GEOPOZ","ul. Gronowa 20","61-655 Poznań",426,1,1,null,null,489,"Teatr Animacji w Poznaniu","Aleja Niepodległości 14","61-713 Poznań"]
[null,"Zarząd Zieleni Miejskiej","ul. Strzegomska 3","60-194 Poznań",432,1,1,null,null,488,"Teatr Muzyczny w Poznaniu","ul. Niezłomnych 1e","61-894 Poznań"]
[null,"Zarząd Transportu Miejskiego","ul.Grunwaldzka 104","60-307 Poznań",36312,1,1,null,null,490,"Teatr Ósmego Dnia","ul. Ratajczaka 44","61-728 Poznań"]
[null,"Ogród Zoologiczny","ul. Browarna 25","61-063 Poznań",430,1,1,null,null,492,"Teatr Polski w Poznaniu","ul. 27 Grudnia 8/10","61-737 Poznań"]
[null,"Szkoła Podstawowa - Piątkowska Szkoła Uspołeczniona","ul. Stróżyńskiego 16","60-688 Poznań",30379,1,2,1,null,494,"Wielkopolskie Muzeum Walk Niepodległościowych","ul. Woźna 12","61-777 Poznań"]
[null,"Szkoła Podstawowa Nr 3","os. Piastowskie 27","61-149 Poznań",30397,1,2,1]
[null,"Szkoła Podstawowa Nr 4","ul. Rawicka 12/14","60-113 Poznań",30022,1,2,1]
[null,"Szkoła Podstawowa Nr 5","ul. Traugutta 42","61-514 Poznań",30413,1,2,1]
[null,"Szkoła Podstawowa Nr 6 z Oddziałami Integracyjnymi","os. Rusa 56","61-254 Poznań",30023,1,2,1]
[null,"Szkoła Podstawowa Nr 7","ul. Galileusza 14","60-158 Poznań",30429,1,2,1]
[null,"Szkoła Podstawowa Nr 9","ul. Łukasiewicza 9/13","60-726 Poznań",30324,1,2,1]
[null,"Szkoła Podstawowa Nr 10","ul. Bosa 9","60-125  Poznań",30380,1,2,1]
[null,"Szkoła Podstawowa Nr 11","os. Wichrowe Wzgórze 119","61-699  Poznań",30024,1,2,1]
[null,"Szkoła Podstawowa Nr 15","os. Jana III Sobieskiego 105","60-688 Poznań",505,1,2,1]
[null,"Szkoła Podstawowa Nr 17","os. Bolesława Chrobrego 105","60-681 Poznań",30385,1,2,1]
[null,"Szkoła Podstawowa Nr 18","os. Armii Krajowej 100","61-381 Poznań",30386,1,2,1]
[null,"Szkoła Podstawowa Nr 19","os. Oświecenia 1","61-205 Poznań",30387,1,2,1]
[null,"Szkoła Podstawowa Nr 20","os. Rzeczypospolitej 44","61-395 Poznań",30388,1,2,1]
[null,"Szkoła Podstawowa Nr 21","ul. Łozowa 77","61-448 Poznań",30389,1,2,1]
[null,"Szkoła Podstawowa Nr 23","ul. Norwida 21","60-867 Poznań",30391,1,2,1]
[null,"Szkoła Podstawowa Nr 26","ul. Berwińskiego 2/4","60-765 Poznań",30394,1,2,1]
[null,"Szkoła Podstawowa Nr 28","ul. Chojnicka 57","60-480 Poznań",30396,1,2,1]
[null,"Szkoła Podstawowa Nr 34","os. Bolesława Śmiałego 107","60-682 Poznań",30399,1,2,1]
[null,"Szkoła Podstawowa Nr 36","ul. Słowackiego 54/60","60-521 Poznań",30400,1,2,1]
[null,"Szkoła Podstawowa Nr 38","ul. Brandstaettera 6","61-659 Poznań",30401,1,2,1]
[null,"Szkoła Podstawowa Nr 40 z Oddziałami Integracyjnymi","ul. Garbary 82","61-758 Poznań",30403,1,2,1]
[null,"Szkoła Podstawowa Nr 45","ul. Harcerska 3","61-011 Poznań",30409,1,2,1]
[null,"Szkoła Podstawowa Nr 46","ul. Inowrocławska 19","61-044 Poznań",30410,1,2,1]
[null,"Szkoła Podstawowa Nr 48","ul. Sarmacka 105","61-616 Poznań",30411,1,2,1]
[null,"Szkoła Podstawowa Nr 51","os. Lecha 37","61-294 Poznań",30415,1,2,1]
[null,"Szkoła Podstawowa Nr 52","ul. Fabianowo 29","60-005 Poznań",30416,1,2,1]
[null,"Szkoła Podstawowa Nr 54","ul. Małoszyńska 38","60-176 Poznań",30418,1,2,1]
[null,"Szkoła Podstawowa Nr 55","ul. Szpaków 1","61-065 Poznań",30028,1,2,1]
[null,"Szkoła Podstawowa Nr 58","ul. Ławica 3","61-186 Poznań",30420,1,2,1]
[null,"Szkoła Podstawowa Nr 59","ul. Baranowska 1","61-353 Poznań",30029,1,2,1]
[null,"Szkoła Podstawowa Nr 60","ul. Boranta 2","61-608 Poznań",30421,1,2,1]
[null,"Szkoła Podstawowa Nr 62","ul. Druskiennicka 32","60-476 Poznań",30423,1,2,1]
[null,"Szkoła Podstawowa Nr 63","ul. Starołęcka 142","61-341 Poznań",30424,1,2,1]
[null,"Szkoła Podstawowa Nr 64","os. Orła Białego 120","61-251 Poznań",30030,1,2,1]
[null,"Szkoła Podstawowa Nr 65","os. Kosmonautów 111","61-642 Poznań",30425,1,2,1]
[null,"Szkoła Podstawowa Nr 66","os. Przyjaźni 127","61-684 Poznań",30426,1,2,1]
[null,"Szkoła Podstawowa Nr 69  \nSzkoła Mistrzostwa Sportowego","ul. Jarochowskiego 62","60-249 Poznań",30031,1,2,1]
[null,"Szkoła Podstawowa Nr 70","ul. Piękna 37","60-591 Poznań",30430,1,2,1]
[null,"Szkoła Podstawowa Nr 71","ul. Przybyszewskiego 37","60-356 Poznań",30431,1,2,1]
[null,"Szkoła Podstawowa Nr 74","ul. Trybunalska 17/25","60-325 Poznań",30032,1,2,1]
[null,"Szkoła Podstawowa Nr 77","Dmowskiego 50","60-204 Poznań",30435,1,2,1]
[null,"Szkoła Podstawowa Nr 79","ul. Jesionowa 14","61-432 Poznań",30437,1,2,1]
[null,"Szkoła Podstawowa Nr 80","ul. Pogodna 84","60-137 Poznań",30033,1,2,1]
[null,"Szkoła Podstawowa Nr 82","ul. Krakowska 10","61-889 Poznań",30439,1,2,1]
[null,"Szkoła Podstawowa Nr 84","ul. Św. Szczepana 3","61-465 Poznań",30441,1,2,1]
[null,"Szkoła Podstawowa Nr 85","ul. Tomickiego 16","61-116 Poznań",30442,1,2,1]
[null,"Szkoła Podstawowa Nr 87","ul. Leszka 42","61-062 Poznań",30035,1,2,1]
[null,"Szkoła Podstawowa Nr 88","ul. Swoboda 53/55","60-389 Poznań",30322,1,2,1]
[null,"Szkoła Podstawowa Nr 89 im. K. Kamila Baczyńskiego","ul. Sochaczewska 3","60-645 Poznań",30323,1,2,1]
[null,"Szkoła Podstawowa Nr 90","ul. Chociszewskiego 56","60-261 Poznań",30037,1,2,1]
[null,"Gimnazjum Nr 1","ul. Cegielskiego 1","61-862 Poznań",30327,1,2,2]
[null,"Gimnazjum Nr 6","os. Przyjaźni 136","61-685 Poznań",30354,1,2,2]
[null,"Gimnazjum Nr 9","os. Kosmonautów 111","61-642 Poznań",30364,1,2,2]
[null,"Gimnazjum Nr 12","os. Stefana Batorego 101","60-687 Poznań",30045,1,2,2]
[null,"Gimnazjum Nr 20","ul. Główna 42","61-007 Poznań",30331,1,2,2]
[null,"Gimnazjum Nr 22","ul. Leszka 42","61-062 Poznań",30042,1,2,2]
[null,"Gimnazjum Nr 23","os. Jagiellońskie 128","61-223 Poznań",30043,1,2,2]
[null,"Gimnazjum Nr 24","os. Bohaterów II Wojny Światowej 29","61-387 Poznań",30332,1,2,2]
[null,"Gimnazjum Nr 25","os. Tysiąclecia 43","61-255 Poznań",30046,1,2,2]
[null,"Gimnazjum Nr 42","ul. Św. Jerzego 6/10","61-546 Poznań",30342,1,2,2]
[null,"Gimnazjum Nr 43","ul. Łozowa 53","61-448 Poznań",30343,1,2,2]
[null,"Gimnazjum Nr 44","ul. Jesionowa 14","61-432 Poznań",30344,1,2,2]
[null,"Gimnazjum Nr 50 im. Lotnictwa Polskiego","ul. Ściegiennego 10","60-128 Poznań",30346,1,2,2]
[null,"Gimnazjum Nr 51","ul. Klaudyny Potockiej 38","60-211 Poznań",30347,1,2,2]
[null,"Gimnazjum Nr 53","ul. Winklera 9/11","60-246 Poznań",30348,1,2,2]
[null,"Gimnazjum Nr 54","ul. Newtona 2","60-161 Poznań",30349,1,2,2]
[null,"Gimnazjum Nr 56","ul. Promyk 4","60-393 Poznań",30351,1,2,2]
[null,"Gimnazjum Nr 57","ul. Sierakowska 23","60-367 Poznań",30352,1,2,2]
[null,"Gimnazjum Nr 58","ul. Małoszyńska 38","60-176 Poznań",30353,1,2,2]
[null,"Gimnazjum Nr 60","ul. Bukowska 53","60-635 Poznań",30355,1,2,2]
[null,"Gimnazjum Nr 61","ul. Słowackiego 58/60","60-521 Poznań",30356,1,2,2]
[null,"Gimnazjum Nr 62","ul. Janickiego 22","60-542 Poznań",30357,1,2,2]
[null,"Gimnazjum Nr 63","ul. Drzymały 4/6","60-613 Poznań",30358,1,2,2]
[null,"Gimnazjum Nr 65","ul. Druskiennicka 31","60-476 Poznań",30360,1,2,2]
[null,"Gimnazjum Nr 67","ul. Chojnicka 57","60-480 Poznań",30362,1,2,2]
[null,"Liceum Ogólnokształcące św. Marii Magdaleny","ul. Garbary 24","61-864 Poznań",30369,1,2,3]
[null,"IV Liceum Ogólnokształcące","ul. Swojska 6","60-592 Poznań",30367,1,2,3]
[null,"V Liceum Ogólnokształcące","ul. Zmartwychwstańców 10","61-501 Poznań",30370,1,2,3]
[null,"VIII Liceum Ogólnokształcące","ul. Głogowska 92","60-262 Poznań",30372,1,2,3]
[null,"IX Liceum Ogólnokształcące","ul. Warzywna 24","61-658 Poznań",30368,1,2,3]
[null,"XI Liceum Ogólnokształcące","ul. Ściegiennego 134","60-304 Poznań",30373,1,2,3]
[null,"XII Liceum Ogólnokształcące","ul. Generała Kutrzeby 8","60-462 Poznań",30374,1,2,3]
[null,"XIV Liceum Ogólnokształcące","os. Piastowskie 106","61-164 Poznań",30375,1,2,3]
[null,"XXV Liceum Ogólnokształcące","ul. Widna 1","60-655 Poznań",30377,1,2,3]
[null,"Przedszkole Specjalne Nr 164","ul. Libelta 35","61-216 Poznań",30312,1,2,4]
[null,"Bursa Szkolna Nr 1","ul. Krakowska 17","61-889 Poznań",30299,1,2,5]
[null,"Bursa Szkolna Nr 2","ul. Czeremchowa 22","61-474 Poznań",30300,1,2,5]
[null,"Bursa Szkolna Nr 6","ul. Młyńska 11","61-730 Poznań",30303,1,2,5]
[null,"Ogród Jordanowski Nr 1","ul. Solna 2","61-736 Poznań",30305,1,2,5]
[null,"Ogród Jordanowski Nr 2","ul. Przybyszewskiego 53","60-355 Poznań",30306,1,2,5]
[null,"Poradnia Psychologiczno - Pedagogiczna dla Dzieci i Młodzieży ze Specjalnymi Potrzebami Edukacyjnymi","ul. 28 Czerwca 1956r. Nr 296/298","61-469 Poznań",30285,1,2,5]
[null,"Poradnia Psychologiczno - Pedagogiczna Nr 1","ul. Kossaka 20/9","60-762 Poznań",30286,1,2,5]
[null,"Poradnia Psychologiczno - Pedagogiczna Nr 2","ul.Sierakowska 23","60-367 Poznań",30287,1,2,5]
[null,"Poradnia Psychologiczno - Pedagogiczna Nr 3","ul. Mickiewicza 30","60-836 Poznań",30288,1,2,5]
[null,"Poradnia Psychologiczno - Pedagogiczna Nr 4","os. Jana III Sobieskiego 1L","60-688 Poznań",30289,1,2,5]
[null,"Poradnia Psychologiczno - Pedagogiczna Nr 5","ul. Nowowiejskiego 29","61-733 Poznań",30290,1,2,5]
[null,"Poradnia Psychologiczno - Pedagogiczna Nr 6","ul. 28 Czerwca 1956r. Nr 295/298","61-469 Poznań",30291,1,2,5]
[null,"Poradnia Psychologiczno - Pedagogiczna Nr 7","ul. Św. Antoniego 42","61-359 Poznań",30292,1,2,5]
[null,"Poradnia Psychologiczno - Pedagogiczna Nr 8","os. Rusa 56/D1","61-245 Poznań",30293,1,2,5]
[null,"Szkolne Schronisko Młodzieżowe Nr 3","ul. Berwińskiego 2/3","60-765 Poznań",30309,1,2,5]
[null,"Centrum Doradztwa Zawodowego dla Młodzieży","ul. Działyńskich 4/5","61-727 Poznań",31925,1,2,5]
[null,"Specjalny Ośrodek Szkolno-Wychowawczy dla Dzieci i Młodzieży Niepełnosprawnej im. Zbigniewa Tylewicza","ul. Szamarzewskiego 78/82","60-569 Poznań",30297,1,2,6]
[null,"Ośrodek Szkolno-Wychowawczy dla Dzieci Niesłyszących (Szkoła Podstawowa Specjalna Nr 113, Gimnazjum Specjalne Nr 113, Zasadnicza Szkoła Zawodowa Specjalna Nr 3, Technikum Specjalne, Technikum Uzupełniające Specjalne Nr 1, III Liceum Ogólnokształcące Specjalne, Uzupełniające Liceum Ogólnokształcące Spec.)","ul. Bydgoska 4a","61-127 Poznań",30296,1,2,6]
[null,"Zespół Szkół Zawodowych Nr 2  (Zasadnicza Szkoła Zawodowa Specjalna Nr 1, Zasadnicza Szkoła Zawodowa Nr 2, Szkoła Specjalna Przysposabiająca do Pracy Nr 4)","ul. Żniwna 1","61-663 Poznań",30298,1,2,6]
[null,"Zespół Szkół Budowlano-Drzewnych (XXVIII Liceum Ogólnokształcące, XXVIII Liceum Profilowane, Technikum Budowlano-Drzewne, Zasadnicza Szkoła Zawodowa Nr 28, XXVIII Uzupełniające Liceum Ogólnokształcące dla Dorosłych, Technikum Uzupełniające Nr 28 dla Dorosłych, Szkoła Policealna Nr 28, Szkoła Policealna Nr 28 dla Dorosłych)","ul. Raszyńska 48","60-135 Poznań",30378,1,2,6]
[null,"Zespół Szkół Budownictwa Nr 1 (XXI Liceum Ogólnokształcące, XXI Liceum Profilowane, Technikum Budowlane, Szkoła Policealna Nr 21, szkoła Policealna Nr 21 dla Dorosłych)","ul. Rybaki 17","61-883 Poznań",30404,1,2,6]
[null,"Zespół Szkół Chemicznych (Gimnazjum Nr 32, XXII Liceum Ogólnokształcące, XXII Liceum Profilowane, Szkoła Policealna Nr 22, szkoła Policealna Nr 22 dla Dorosłych)","ul. Starołęcka 36/38","61-361 Poznań",30314,1,2,6]
[null,"Zespół Szkół Ekonomicznych ( II Liceum Profilowane, Technikum Administracyjno-Ekonomiczne Nr 1, Szkoła Policealna Nr 1, Szkoła Policealna Nr 1 dla Dorosłych)","ul. Marszałkowska 40","60-327 Poznań",30315,1,2,6]
[null,"Zespół Szkół Elektrycznych Nr 1 (XXVI Liceum Ogólnokształcące, XXVI Liceum Profilowane, Technikum Energetyczne)","ul. Dąbrowskiego 163","60-594 Poznań",30316,1,2,6]
[null,"Zespół Szkół Elektrycznych Nr 2 (XXVII Liceum Ogólnokształcące, XXVII Liceum Profilowane, Technikum Elektryczno-Elektroniczne, Zasadnicza Szkoła Zawodowa Nr 27, XXVII Liceum Ogólnokształcące dla Dorosłych, Technikum Uzupełniające Nr 27 dla Dorosłych)","ul. Świt 25","60-375 Poznań",30317,1,2,6]
[null,"Zespół Szkół Gastronomicznych (III Liceum Profilowane, Technikum Gastronomiczne, Zasadnicza Szkoła Zawodowa Nr 3, Policealne Studium Zawodowe Nr 6, Technikum Uzupełniające Nr 3 dla Dorosłych)","ul. Podkomorska 49","60-326 Poznań",30318,1,2,6]
[null,"Zespół Szkół Geodezyjno-Drogowych (XVIII Liceum Ogólnokształcące, XVIII Liceum Profilowane, Technikum Geodezyjno-Drogowe, Zasadnicza Szkoła Zawodowa Nr 18, XVIII Uzupełniające Liceum Ogólnokształcące dla Dorosłych, Technikum Uzupełniające Nr 18 dla Dorosłych, Szkoła Policealna Nr 18, Szkoła Policealna Nr 18 dla Dorosłych)","ul. Szamotulska 33","60-365 Poznań",30319,1,2,6]
[null,"Zespół Szkół Handlowych (IV Liceum Profilowane, Technikum Ekonomiczno-Handlowe, Zasadnicza Szkoła Zawodowa Nr 4, XXXVI Uzup. Liceum Ogóln. dla Dorosłych, Technikum Uzup. Nr 4 dla Dorosłych, Szkoła Policealna Nr 4, Szkoła Policealna Nr 4 dla Dorosłych)","ul. Śniadeckich 54/58","60-774 Poznań",30259,1,2,6]
[null,"Zespół Szkół Handlowych Nr 2 (V Liceum Profilowane, Technikum Handlowe, Zasadnicza Szkoła Zawodowa Nr 5, XXXVII Uzupełniające Liceum Ogóln. dla Dorosłych, Technikum Uzup. Nr 5 dla Dorosłych, Szkoła Policealna Nr 5, Szkoła Policealna Nr 5 dla Dorosłych)","ul. Łozowa 77","61-448 Poznań",30260,1,2,6]
[null,"Zespół Szkół Komunikacji im. Hipolita Cegielskiego (XXXII Liceum Ogólnokształcące, XXXII Liceum Profilowane, Technikum Komunikacji, Szkoła Policealna Nr 32, Szkoła Policealna Nr 32 dla Dorosłych","ul. Fredry 13","61-701 Poznań",30263,1,2,6]
[null,"Zespół Szkół Licealno-Technicznych (XIX Liceum Ogólnokształcące, XIX Liceum Profilowane, XIX Uzupełniające Liceum Ogólnokształcące dla Dorosłych, Technikum Uzupełniające Nr 19 dla Dorosłych, Szkoła Policealna Nr 19, Szkoła Policealna Nr 19 dla Dorosłych","ul. 28 Czerwca 1956r. Nr 352","61-441 Poznań",30264,1,2,6]
[null,"Zespół Szkół Łączności (Gimnazjum Nr 4, XXXIV Liceum Ogólnokształcące, XXXIV Liceum Profilowane, Technikum Łączności, Zasadnicza Szkoła Zawodowa Nr 34, XXXIV Uzupełniające Liceum Ogólnokształcące dla Dorosłych, Technikum Uzupełniające Nr 34 dla Dorosłych, Szkoła Policealna Nr 34, Szkoła Policealna Nr 34 dla Dorosłych)","ul. Przełajowa 4","61-622 Poznań",30265,1,2,6]
[null,"Zespół Szkół Mechanicznych im. Komisji Edukacji Narodowej (XXIX Liceum Ogólnokształcące, XXIX Liceum Profilowane, Technikum Mechaniczne, Zasadnicza Szkoła Zawodowa Nr 29, Technikum Uzupełniające Nr 29 dla Dorosłych)","ul. Świerkowa 8","61-472 Poznań",30266,1,2,6]
[null,"Zespół Szkół Mechaniki Precyzyjnej (I Liceum Profilowane, Technikum Elektroniczno-Mechaniczne, Zasadnicza Szkoła Zawodowa Nr 1, Technikum Uzupełniające Nr 1 dla Dorosłych","ul. Jawornicka 1","60-161 Poznań",30267,1,2,6]
[null,"Zespół Szkół Mistrzostwa Sportowego (Liceum Ogólnokształcące, Gimnazjum Mistrzostwa Sportowego)","ul. Cegielskiego 1","61-862 Poznań",30268,1,2,6]
[null,"Zespół Szkół Odzieżowych (XXIII Liceum Ogólnokształcące, XXIII Liceum Profilowane, Technikum Odzieżowo-Usługowe, Zasadnicza Szkoła Zawodowa Nr 23, XXIII Uzupełniające Liceum Ogólnokształcące dla Dorosłych, Technikum Uzupełniające Nr 23 dla Dorosłych, Szkoła Policealna Nr 23, Szkoła Policealna Nr 23 dla Dorosłych)","ul. Kazimierza Wielkiego 17","61-863 Poznań",30269,1,2,6]
[null,"Zespół Szkół Ogólnokształcących Nr 1 (Gimnazjum Dwujęzyczne, I Liceum Ogólnokształcące, I Liceum Ogólnokształcące dla Dorosłych, I Uzupełniające Liceum Ogólnokształcące dla Dorosłych)","ul. Bukowska 16","60-811 Poznań",30365,1,2,6]
[null,"Zespół Szkół Ogólnokształcących Nr 2 (Szkoła Podstawowa Nr 56 i Gimnazjum Nr 29 z Oddziałami Dwujęzycznymi, XVI Liceum Ogólnokształcące z Oddziałami Dwujęzycznymi)","ul. Tarnowska 27","61-323 Poznań",30270,1,2,6]
[null,"Zespół Szkół Ogólnokształcących Nr 3 (III Liceum Ogólnokształcące, III Liceum Ogólnokształcące dla Dorosłych, III Uzupełniające Liceum Ogólnokształcące dla Dorosłych)","ul. Strzelecka 10","61-845 Poznań",30271,1,2,6]
[null,"Zespół Szkół Ogólnokształcących Nr 4 (XVII Liceum Ogólnokształcące i Gimnazjum Nr 26)","os. Czecha 59","61-289 Poznań",30272,1,2,6]
[null,"Zespół Szkół Ogólnokształcących Nr 5 (XXIV Liceum Ogólnokształcące, Szkoła Podstawowa Nr 35 i Gimnazjum Nr 10)","os. Władysława Łokietka 104","60-616 Poznań",30041,1,2,6]
[null,"Zespół Szkół Ogólnokształcących Nr 6 (XIII Liceum Ogólnokształcące, Gimnazjum Nr 13)","os. Jana III Sobieskiego 114","60-688 Poznań",30273,1,2,6]
[null,"Zespół Szkół Ogólnokształcących Nr 7 (VI Liceum Ogólnokształcące,  VI Liceum Ogólnokształcące dla Dorosłych, VI Uzupełniające Liceum Ogólnokształcące dla Dorosłych)","ul. Krakowska 17a","61-889 Poznań",30274,1,2,6]
[null,"Zespół Szkół Ogólnokształcących Nr 8 (X Liceum Ogólnokształcące, X Liceum Ogólnokształcące dla Dorosłych, X Uzupełniające Liceum Ogólnokształcące dla Dorosłych)","os. Rzeczypospolitej 111","61-389 Poznań",30275,1,2,6]
[null,"Zespół Szkół Ogólnokształcących Nr 9 (XX Liceum Ogólnokształcące i Gimnazjum Nr 8)","os. Wichrowe Wzgórze 111","61-699 Poznań",30276,1,2,6]
[null,"Zespół Szkół Ogólnokształcących Nr 10 (VII Liceum Ogólnokształcące, Gimnazjum Dwujęzyczne)","ul. Żeromskiego 8/12","60-544 Poznań",31030,1,2,6]
[null,"Zespół Szkół Ogólnokształcących Nr 11 (XXXIII Liceum Ogólnokształcące, Gimnazjum Nr 21)","ul. Nieszawska 21","61-022 Poznań",32884,1,2,6]
[null,"Zespół Szkół Ogólnokształcących Nr 12 (II Liceum Ogólnokształcące, II Liceum Ogólnokształcące dla Dorosłych, II Uzupełniające Liceum Ogólnokształcące dla Dorosłych)","ul. Matejki 8/10","60-766 Poznań",30366,1,2,6]
[null,"Zespół Szkół Przemysłu Spożywczego (XXXV Liceum Ogólnokształcące, VIII Liceum Profilowane, Technikum Przemysłu Spożywczego, Zasadnicza Szkoła Zawodowa Nr 8, Technikum Uzupełniające Nr 8 dla Dorosłych, Policealne Studium Zawodowe, Szkoła Policealna Nr 8, Szkoła Policealna Nr 8 dla Dorosłych)","ul. Warzywna 19","61-658 Poznań",30277,1,2,6]
[null,"Zespół Szkół Samochodowych (IX Liceum Profilowane, Technikum Samochodowe, Zasadnicza Szkoła Zawodowa Nr 9, Technikum Uzupełniające Nr 9 dla Dorosłych)","ul. Zamenhofa 142","61-139 Poznań",30278,1,2,6]
[null,"Zespół Szkół Technicznych w Gospodarce Żywnościowej  (XXXI Liceum Ogólnokształcące, XXXI Liceum Profilowane, Technikum Inżynierii i Agrobiznesu, Zasadnicza Szkoła Zawodowa Nr 31, Policealne Studium Inżynierii Środowiska i Melioracji, Szkoła Policealna Nr 31, Szkoła Policealna Nr 31 dla Dorosłych)","ul. Golęcińska 9","60-626 Poznań",30279,1,2,6]
[null,"Zespół Szkół Zawodowych Nr 1 (VI Liceum Profilowane, Zasadnicza Szkoła Zawodowa Nr 6, XXXVIII Uzupełniające Liceum Ogólnokształcące dla Dorosłych, Technikum Uzupełniające Nr 6 dla Dorosłych)","ul. Floriana 3","60-536 Poznań",30280,1,2,6]
[null,"Zespół Szkół  Zawodowych Nr 6 im. Joachima Lelewela (XXX Liceum Ogólnokształcące, XXX Liceum Profilowane, Technikum Poligraficzno-Administracyjne, Zasadnicza Szkoła Zawodowa Nr 7, XXX Liceum Ogólnokształcąca dla Dorosłych, XXX Uzupełniające Liceum Ogólnokształcące dla Dorosłych,, Technikum Uzupełniające Nr 30 dla Dorosłych)","ul. Działyńskich 4/5","61-727 Poznań",33688,1,2,6]
[null,"Zespół Szkół Gimnazjalno-Licealnych (Gimnazjum Nr 33, XXXIII Liceum Profilowane)","ul. Wyspiańskiego 27","60-751 Poznań",34698,1,2,6]
[null,"Zespół Szkół Ogólnokształcących Nr 15 w Poznaniu","oś.Bolesława Chrobrego 107","60-681 Poznań",35785,1,2,6]
[null,"Warsztaty szkolne przy Zespole Szkół Samochodowych ","ul. Zamenhofa 142","61-139 Poznań",31878,1,2,7]
[null,"Warsztaty Szkolne przy Zespole Szkół Zawodowych Nr 2","ul. Żniwna 1","61-663 Poznań",32883,1,2,7]
[null,"Warsztaty szkolne przy Zespole Szkół Technicznych w Gospodarce Żywnościowej ","ul. Golęcińska 9","60-626 Poznań",31879,1,2,7]
[null,"Warsztaty Szkolne przy Zespole Szkół Geodezyjno-Drogowych","ul. Szamotulska 33","60-365 Poznań",31875,1,2,7]
[null,"Warsztaty Szkolne przy Zespole Szkół Budowlano-Drzewnych","ul. Świerkowa 10","61-472 Poznań",31874,1,2,7]
[null,"Warsztaty Szkolne Zespołu Szkół Gastronomicznych","ul. Podkomorska 49","60-326 Poznań",33076,1,2,7]
[null,"Zespół Szkół Specjalnych Nr 101 (Szkoła Podstawowa Specjalna Nr 101, Gimnazjum Specjalne Nr 101, Zasadnicza  Szkoła Zawodowa Specjalna, Szkoła Specjalna Przysposabiająca do Pracy nr 1)","ul. Swoboda 41","60-389 Poznań",31306,1,2,8]
[null,"Zespół Szkół Specjalnych Nr 102  (Szkoła Podstawowa Specjalna Nr 102, Gimnazjum Specjalne Nr 102, Zasadnicza Szkoła Zawodowa Specjalna Nr 2, Szkoła Specjalna Przysposabiająca do Pracy Nr 2)","ul. Wszystkich Świętych 1","61-843 Poznań",31307,1,2,8]
[null,"Zespół Szkół Specjalnych Nr 103 (Szkoła Podstawowa Specjalna Nr 103, Gimnazjum Specjalne Nr 103)","ul. Rycerska 43","60-345 Poznań",31308,1,2,8]
[null,"Zespół Szkół Specjalnych Nr 105 (Szkoła Podstawowa Specjalna Nr 105, Gimnazjum Specjalne Nr 105, Szkoła Specjalna Przysposabiająca do Pracy nr 3)","ul. Bydgoska 4","61-127 Poznań",31310,1,2,8]
[null,"Zespół Szkół Specjalnych Nr 106 (Szkoła Podstawowa Specjalna Nr 106, Gimnazjum Specjalne Nr 106)","ul. Wojska Polskiego 53","60-625 Poznań",31311,1,2,8]
[null,"Zespół Szkół Specjalnych Nr 107 (Szkoła Podstawowa Specjalna Nr 107, Gimnazjum Specjalne Nr 107)","ul. Dąbrowskiego 73","60-523 Poznań",31312,1,2,8]
[null,"Zespół Szkół Specjalnych Nr 108 przy Specjalistycznym Zespole Opieki Zdrowotnej nad Matką i Dzieckiem w Poznaniu (Przedszkole Specjalne Nr 108, Szkoła Podstawowa Specjalna Nr 108, Gimnazjum Specjalne Nr 108)","ul. Krysiewicza 7/8","61-825 Poznań",31313,1,2,8]
[null,"Zespół Szkół Specjalnych Nr 109 przy Szpitalu Rehabilitacyjnym dla Dzieci w Poznaniu (Przedszkole Specjalne Nr 99, Szkoła Podstawowa Specjalna Nr 109, Gimnazjum Specjalne Nr 109, I Liceum Ogólnokształcące Specjalne)","ul. Sanatoryjna 2","60-480 Poznań",31314,1,2,8]
[null,"Zespół Szkół Specjalnych Nr 110 (przy Samodzielnym Publicznym Szpitalu Klinicznym nr 5 Akademii Medycznej w Poznaniu (Przedszkole Specjalne Nr 107, Szkoła Podstawowa Specjalna nr 110, Gimnazjum Specjalne Nr 110)","ul. Szpitalna 27/33","60-572 Poznań",31315,1,2,8]
[null,"Zespół Szkół Specjalnych Nr 112 (Szkoła Podstawowa Specjalna Nr 112, Gimnazjum Specjalne Nr 112)","ul. Obornicka 314","60-691 Poznań",31316,1,2,8]
[null,"Zespół Szkół z Klasami Integracyjnymi i Specjalnymi Nr 1 (Szkoła Podstawowa Nr 68, Gimnazjum Specjalne Nr 114)","Os. Jana III Sobieskiego 102","60-688 Poznań",31024,1,2,8]
[null,"Zespół Szkół z Oddziałami Integracyjnymi i Specjalnymi Nr 2","ul.Prądzyńskiego 53","61-527 Poznań",31025,1,2,8]
[null,"Zespół Szkół i Placówek w Państwowym Szpitalu Klinicznym Nr 4 w Poznaniu \n(Przedszkole Specjalne Nr 111, Szkoła Podstawowa Specjalna nr 111, Gimnazjum Specjalne Nr 111, II Liceum Ogólnokształcące Specjalne)","ul. 28 Czerwca 1956r. Nr 135/147","61-544 Poznań",30261,1,2,8]
[null,"Zespół Szkół Nr 1 (Szkoła Podstawowa Nr 57 i Gimnazjum Nr 66)","ul. Leśnowolska 35","60-452 Poznań",32886,1,2,9]
[null,"Zespół Szkół Nr 2 (Szkoła Podstawowa Nr 22 i Gimnazjum Nr 68)","ul. Hangarowa 14","60-409 Poznań",32887,1,2,9]
[null,"Zespół Szkół z Oddziałami Sportowymi Nr 4 (Szkoła Podstawowa Nr 27 i Gimnazjum Nr 64)","os. Winiary 2","60-655 Poznań",32888,1,2,9]
[null,"Zespół Szkół Nr 4  (Szkoła Podstawowa Nr 83, Gimnazjum Nr 15)","ul. Brandstaettera 1","61-659 Poznań",32889,1,2,9]
[null,"Zespół Szkół Nr 5  (Szkoła Podstawowa Nr 42, Gimnazjum Nr 40)","ul. Różana 1/3","61-577 Poznań",32890,1,2,9]
[null,"Zespół Szkół Nr 6 (Szkoła Podstawowa Nr 61 i Gimnazjum Nr 35)","ul. Szczepankowo 74","61-306 Poznań",35185,1,2,9]
[null,"Zespół Szkół Nr 7","oś. Zwycięstwa 101","61-736 Poznań",36169,1,2,9]
[null,"Zespół Szkół z Oddziałami Integracyjnymi Nr 1  (Szkoła Podstawowa Nr 50, Gimnazjum Nr 27)","os. Stare Żegrze 1","61-249 Poznań",32891,1,2,9]
[null,"Zespół Szkół z Oddziałami Integracyjnymi Nr 2  (Szkoła Podstawowa Nr 78, Gimnazjum Nr 55)","ul. Żonkilowa 34","60-175 Poznań",32892,1,2,9]
[null,"Zespół Szkół z Oddziałami Integracyjnymi Nr 3 (Szkoła Podstawowa Nr 75, Gimnazjum Nr 2)","ul. Powstańców Wlkp. 3","61-895 Poznań",32893,1,2,9]
[null,"Zespół Szkół z Oddziałami Sportowymi Nr 1 (Szkoła Podstawowa Nr 29, Gimnazjum Nr 5)","os. Pod Lipami 105","61-638 Poznań",32894,1,2,9]
[null,"Zespół Szkół z Oddziałami Sportowymi Nr 2 (Szkoła Podstawowa Nr 13, Gimnazjum Nr 3)","al. Niepodległości 32/40","61-714 Poznań",32895,1,2,9]
[null,"Zespół Szkół z Oddziałami Sportowymi Nr 5","ul.Głuszyna 187","61-329 Poznań",35786,1,2,9]
[null,"Zespół Szkół z Oddziałami Sportowymi Nr 3  (Szkoła Podstawowa Nr 14, Gimnazjum Nr 31)","os. Piastowskie 65","61-156 Poznań",32896,1,2,9]
[null,"Miejski Ośrodek Pomocy Rodzinie z 6 filiami","ul. Cześnikowska 18","60-330 Poznań",423,1,5,1]
[null,"Poznańskie Centrum Świadczeń","ul.Wszystkich Świętych 1","61-843 Poznań",36198,1,5,1]
[null,"Dom Dziecka Nr 1","ul. Swoboda 59","60-389 Poznań",30556,1,5,2]
[null,"Dom Dziecka Nr 2","ul. Pamiątkowa 28","61-505 Poznań",30557,1,5,2]
[null,"Rodzinny Dom Dziecka Nr 1","os. Rusa 100/2","61-245 Poznań",30558,1,5,2]
[null,"Rodzinny Dom Dziecka Nr 2","ul. Jugosłowiańska 54G/1","60-149 Poznań",30559,1,5,2]
[null,"Rodzinny Dom Dziecka Nr 4","os. Winiary 4/2","60-664 Poznań",30561,1,5,2]
[null,"Rodzinny Dom Dziecka Nr 5","ul. Owsiana 17/2","61-666 Poznań",31904,1,5,2]
[null,"Rodzinny Dom Dziecka Nr 6","ul. Grottera 3/3","60-757 Poznań",33715,1,5,2]
[null,"Centrum Wspierania Rozwoju Dzieci i Młodzieży „KLUB” w Poznaniu","ul. Sienkiewicza 11","60-816 Poznań",30571,1,5,2]
[null,"Dom Pomocy Społecznej","ul. Bukowska 27/29","60-501 Poznań",30562,1,5,3]
[null,"Dom Pomocy Społecznej","ul. Konarskiego 11/13","61-114 Poznań",30563,1,5,3]
[null,"Dom Pomocy Społecznej","ul. Ugory 20","61-623 Poznań",30564,1,5,3]
[null,"Miejskie Centrum Interwencji Kryzysowej","ul. Dolne Chyby 10","62-081 Poznań-Przeźmierowo",30565,1,5,3]
[null,"Dom Pomocy Społecznej im. Bł. Edmunda Bojanowskiego","ul. Niedziałkowskiego 22","61-578 Poznań",30566,1,5,3]
[null,"Dzienny Dom Pomocy Społecznej Nr 1","ul. Konopnickiej 18","60-777 Poznań",30567,1,5,4]
[null,"Dzienny Dom Pomocy Społecznej Nr 2","ul. Nowy Świat 7/11","60-581 Poznań",30568,1,5,4]
[null,"Dzienny Dom Pomocy Społecznej Nr 3 \"Klub Promień\"","os. Piastowskie 101","61-164 Poznań",30051,1,5,4]
[null,"Dzienny Dom Pomocy Społecznej Nr 4 \"Klub Starówka\"","ul. Wielka 1","61-774 Poznań",30569,1,5,4]
[null,"Dzienny Dom Pomocy Społecznej Nr 5 \"Klub Winogrady\"","os. Kosmonautów 15","61-639 Poznań",30570,1,5,4]
[null,"Dzienny Ośrodek Adaptacyjny","ul. Saperska 15","61-494 Poznań",30052,1,5,4]
[null,"Ośrodek Adopcyjno - Opiekuńczy w Poznaniu","al. Wielkopolska 21/25","60-603 Poznań",30572,1,5,4]
[null,"Ośrodek Dla Bezdomnych Nr 1","ul. Michałowo 68","61-314 Poznań",30573,1,5,4]
[null,"Żłobek nr 1 \"Krecik\" z 3 filiami","os. B. Chrobrego 108","60-681 Poznań",30044,1,5,5]
[null,"Żłobek nr 2 \"Kalinka\" z 2 filiami","ul. Szamarzewskiego 7/9","60-514 Poznań",30048,1,5,5]
[null,"Żłobek nr 3 \"Czerwony Kapturek\" z 2 filiami","ul. Klonowica 3","60-747 Poznań",30049,1,5,5]
[null,"Żłobek nr 4 \"Miś Uszatek\" z 3 filiami","ul. Prądzyńskiego 16","61-527 Poznań",30050,1,5,5]
[null,"Poznańska Ogólnokształcąca Szkoła Muzyczna I stopnia nr 1 im. H. Wieniawskiego","ul. Solna 12","61-736 Poznań",434,1,6,1]
[null,"Poznańska Ogólnokształcąca Szkoła Muzyczna I stopnia nr 2 im. T. Szeligowskiego","ul. Bydgoska 4","61-127 Poznań",435,1,6,1]
[null,"Poznańska Ogólnokształcąca Szkoła Muzyczna II stopnia im. Mieczysława Karłowicza","ul. Solna 12","61-736 Poznań",433,1,6,1]
[null,"Poznańska Szkoła Chóralna Jerzego Kurczewskiego","ul. Cegielskiego 1","61-862 Poznań",436,1,6,1]
[null,"Młodzieżowy Dom Kultury nr 1","ul. Droga Dębińska 21","61-555 Poznań",544,1,6,2]
[null,"Młodzieżowy Dom Kultury nr 2","ul. Za Cytadelą 121","61-663 Poznań",545,1,6,2]
[null,"Młodzieżowy Dom Kultury nr 3","ul. Jarochowskiego 1","60-235 Poznań",546,1,6,2]
[null,"Zakład Zagospodarowania Odpadów","Al.. Marcinkowskiego 11","61-827 Poznań",35427,2,1]
[null,"Zarząd Komunalnych Zasobów Lokalowych","ul. Matejki 57","60-770 Poznań",429,2,1]
[null,"Przedszkole Nr 1 \"Bajkowy Zamek\"","ul. Jawornicka 17","60-161 Poznań",30575,2,2]
[null,"Przedszkole Nr 2","ul. Grobla 1","61-858 Poznań",30513,2,2]
[null,"Przedszkole Nr 3 \"Promyczek\"","ul. Dojazd 3","60-632 Poznań",30523,2,2]
[null,"Przedszkole Nr 4","ul. Św. Kingi 1a","61-055 Poznań",30533,2,2]
[null,"Przedszkole Nr 6 \"Polne Kwiatki\"","os. Lecha 79","61-296 Poznań",30457,2,2]
[null,"Przedszkole Nr 7","ul. Mikołowska 14","60-102 Poznań",30466,2,2]
[null,"Przedszkole Nr 8","ul. Bosa 16","60-125 Poznań",30477,2,2]
[null,"Przedszkole Nr 9 im. Zbyszka i Jagienki","os. Jagiellońskie 9","61-226 Poznań",30488,2,2]
[null,"Przedszkole Nr 10 im. Bolka, Lolka i Toli","os. Oświecenia 26","61-202 Poznań",30576,2,2]
[null,"Przedszkole Nr 12 \"Marcinek\"","ul. Płocka 4","61-045 Poznań",30592,2,2]
[null,"Przedszkole Nr 13","ul. Keplera 5","60-158 Poznań",30601,2,2]
[null,"Przedszkole Nr 14","ul. Tczewska 11","60-454 Poznań",30609,2,2]
[null,"Przedszkole Nr 15 \"Calineczka\"","ul. Antoniego 42","61-359 Poznań",30615,2,2]
[null,"Przedszkole Nr 16 \"Pszczółki\"","ul. Sarmacka 73","61-616 Poznań",30620,2,2]
[null,"Przedszkole Nr 19 \"Melodyjka\"","ul. Słowackiego 57","60-521 Poznań",30511,2,2]
[null,"Przedszkole Nr 20 im. Śmiałka Umiałka","os. Orła Białego 29","61-251 Poznań",30514,2,2]
[null,"Przedszkole Nr 21 \"Akademia Pana Kleksa\"","os. Orła Białego 102","61-251 Poznań",30515,2,2]
[null,"Przedszkole Nr 22 \"Chatka Puchatka\"","ul. Orzechowa 2b","61-447 Poznań",30516,2,2]
[null,"Przedszkole Nr 23 im. Krasnala Hałabały","ul. Garbary 82","61-758 Poznań",30517,2,2]
[null,"Przedszkole Nr 24","os. Bolesława Chrobrego 104","60-681 Poznań",30518,2,2]
[null,"Przedszkole Nr 25","ul. Głogowska 97","60-265 Poznań",30519,2,2]
[null,"Przedszkole Nr 28","ul. Galileusza 7","60-159 Poznań",30521,2,2]
[null,"Przedszkole Nr 29","ul. Księcia Józefa 1/3","61-718 Poznań",30522,2,2]
[null,"Przedszkole Nr 30 \"Mały Olimpijczyk\"","ul. Szamotulska 75a","60-566 Poznań",30524,2,2]
[null,"Przedszkole Nr 31","ul. Mielżyńskiego 21","61-725 Poznań",30525,2,2]
[null,"Przedszkole Nr 32 \"Świerszczykowe Nutki\"","ul. Chociszewskiego 44c","60-259 Poznań",30526,2,2]
[null,"Przedszkole Nr 35 im. Króla Maciusia I","os. Bolesława Chrobrego 109","60-683 Poznań",30528,2,2]
[null,"Przedszkole Nr 36 im. Marii Kownackiej","ul. Perzycka 30","60-182 Poznań",30529,2,2]
[null,"Przedszkole Nr 37","os. Wichrowe Wzgórze 112","61-674 Poznań",30530,2,2]
[null,"Przedszkole Nr 38 \"Orle Gniazdo\"","ul. Junikowska 15","60-163 Poznań",30531,2,2]
[null,"Przedszkole Nr 39 \"Leśne Ludki\"","ul. Limanowskiego 23a","60-744 Poznań",30532,2,2]
[null,"Przedszkole Nr 40 \"Poznańskie Koziołki\"","ul. Cześnikowska 18a","60-330 Poznań",30534,2,2]
[null,"Przedszkole Nr 41 \"Wesoła Stacyjka\"","ul. Bluszczowa 17","61-478 Poznań",30535,2,2]
[null,"Przedszkole Nr 42 \"Kwiaty Polskie\"","ul. Prądzyńskiego 15a","61-527 Poznań",30536,2,2]
[null,"Przedszkole Nr 43 im. Krasnala Hałabały","ul. Wiązowa 5","61-432 Poznań",30537,2,2]
[null,"Przedszkole Nr 44 im. Janusza Korczaka","ul. Dmowskiego 17","60-222 Poznań",30538,2,2]
[null,"Przedszkole Nr 45","ul. Trzemeszeńska 12","61-038 Poznań",30444,2,2]
[null,"Przedszkole Nr 46","ul. Palacza 138a","60-278 Poznań",30445,2,2]
[null,"Przedszkole Nr 47","ul. Senatorska 1","60-326 Poznań",30446,2,2]
[null,"Przedszkole Nr 48","ul. Łukaszewicza 35","60-725 Poznań",30447,2,2]
[null,"Przedszkole Nr 51","ul. Głogowska 40","60-736 Poznań",30449,2,2]
[null,"Przedszkole Nr 53 im. Koszałka Opałka\"","os. Lecha 14","61-293 Poznań",30451,2,2]
[null,"Przedszkole Nr 54 \"Tajemniczy Świat\"","ul. Dolina 6","61-551 Poznań",30452,2,2]
[null,"Przedszkole Nr 58","ul. Wolsztyńska 15","60-361 Poznań",30455,2,2]
[null,"Przedszkole Nr 59","ul. Słowackiego 19/21","60-822 Poznań",30456,2,2]
[null,"Przedszkole Nr 64 im. Bolka i Lolka","ul. Winogrady 24","61-663 Poznań",30460,2,2]
[null,"Przedszkole Nr 65 \"Violinek\"","ul. Czechosłowacka 29","61-456 Poznań",30461,2,2]
[null,"Przedszkole Nr 66","ul. Noskowskiego 35/37","61-705 Poznań",30462,2,2]
[null,"Przedszkole Nr 67 im. Marii Konopnickiej","ul. Albańska 15","60-123 Poznań",30463,2,2]
[null,"Przedszkole Nr 68 \"Kolorowy Świat\"","ul. Majakowskiego 316","61-245 Poznań",30464,2,2]
[null,"Przedszkole Nr 69","ul. Chopina 3","61-708 Poznań",30465,2,2]
[null,"Przedszkole Nr 70 \"Słoneczna Chatka\"","ul. Skarbka 9","60-348 Poznań",30467,2,2]
[null,"Przedszkole Nr 71","ul. Galla Anonima 13","60-547 Poznań",30468,2,2]
[null,"Przedszkole Nr 73 \"Zielony Gaik\"","os. Czecha 140","61-292 Poznań",30470,2,2]
[null,"Przedszkole Nr 74 im. Misia Uszatka","ul. Kazimierza Wielkiego 19/21","61-863 Poznań",30471,2,2]
[null,"Przedszkole Nr 75 \"Przyjaciele Włóczykija\"","ul. Sporna 4","61-709 Poznań",30472,2,2]
[null,"Przedszkole Nr 77","ul. Mickiewicza 30","60-836 Poznań",30474,2,2]
[null,"Przedszkole Nr 78","ul. Nadolnik 9a","61-012 Poznań",30475,2,2]
[null,"Przedszkole Nr 79","ul. Bukowska 47","60-555 Poznań",30476,2,2]
[null,"Przedszkole Nr 81 im. Skrzata Borodzieja","ul. Limbowa 2","61-446 Poznań",30479,2,2]
[null,"Przedszkole Nr 82","ul. Zawady 26","61-002 Poznań",30480,2,2]
[null,"Przedszkole Nr 83 \"Zuch\"","ul. Kasztelańska 19","60-316 Poznań",30481,2,2]
[null,"Przedszkole Nr 85","ul. Krzesiny 13","61-321 Poznań",30483,2,2]
[null,"Przedszkole Nr 86 \"Tęczowy Świat\"","ul. Słowackiego 15","60-822 Poznań",30484,2,2]
[null,"Przedszkole Nr 87 im. Jacusia i Agatki","ul. Czesława 6a","61-575 Poznań",30485,2,2]
[null,"Przedszkole Nr 89","ul. Kasprzaka 46","60-245 Poznań",30487,2,2]
[null,"Przedszkole Nr 90 im. Jana Brzechwy","ul. Winklera 9","60-246 Poznań",30489,2,2]
[null,"Przedszkole Nr 91 \"Bajka\"","ul. Cześnikowska 19a","60-329 Poznań",30490,2,2]
[null,"Przedszkole Nr 93 im. Hanny Zdzitowieckiej","ul. Skibowa 13","61-306 Poznań",30491,2,2]
[null,"Przedszkole Nr 95","ul. Hangarowa 14","60-409 Poznań",30492,2,2]
[null,"Przedszkole Nr 96 \"Jarzębinka\"","ul. Janickiego 24a","60-544 Poznań",30493,2,2]
[null,"Przedszkole Nr 98 \"Słoneczko\"","ul. Pułaskiego 16","60-607 Poznań",30495,2,2]
[null,"Przedszkole Nr 100 \"Mali Poznaniacy\"","ul. Swobody 57","60-389 Poznań",30577,2,2]
[null,"Przedszkole Nr 103 \"Pan Kleks\"","ul. Wierzbięcice 64","61-548 Poznań",30580,2,2]
[null,"Przedszkole Nr 104 \"Bajlandia\"","ul. Jesionowa 14","61-432 Poznań",30581,2,2]
[null,"Przedszkole Nr 110 \"Wesoły Domek\"","ul. Świt 16a","60-375 Poznań",30583,2,2]
[null,"Przedszkole Nr 112 \"Mali Przyrodnicy\"","ul. Osinowa 14a","61-451 Poznań",30584,2,2]
[null,"Przedszkole Nr 113 \"Mali Sportowcy\"","os. Rzeczypospolitej 7","61-397 Poznań",30585,2,2]
[null,"Przedszkole Nr 114 \"Pinokio\"","os. Bohaterów II Wojny Światowej 1","61-388 Poznań",30586,2,2]
[null,"Przedszkole Nr 115 \"Sportowa Drużyna\"","ul. Różana 1/3","61-577 Poznań",30587,2,2]
[null,"Przedszkole Nr 116","os. Pod Lipami 107","61-678 Poznań",30588,2,2]
[null,"Przedszkole Nr 117 im. Czecha","os. Piastowskie 105","61-164 Poznań",30589,2,2]
[null,"Przedszkole Nr 118 im. Ewy Szelburg Zarembiny","ul. Płomienna 1","60-392 Poznań",30590,2,2]
[null,"Przedszkole Nr 119 im. Lecha","os. Piastowskie 55","61-156 Poznań",30591,2,2]
[null,"Przedszkole Nr 121","ul. Biskupińska 65","60-463 Poznań",30594,2,2]
[null,"Przedszkole Nr 124 \"Wesoła Ludwiczka\"","os. Bohaterów II Wojny Światowej 30","61-386 Poznań",30595,2,2]
[null,"Przedszkole Nr 126 im. Rusa","os. Piastowskie 26","61-148 Poznań",30597,2,2]
[null,"Przedszkole Nr 127","os. Pod Lipami 102","61-632 Poznań",30598,2,2]
[null,"Przedszkole Nr 129 im. Małych Przyjaciół","os. Przyjaźni 135","61-687 Poznań",30600,2,2]
[null,"Przedszkole Nr 130 \"Bajkowy Świat\"","os. Rzeczypospolitej 43","61-395 Poznań",30602,2,2]
[null,"Przedszkole Nr 131 im. Piasta Kołodzieja","os. Przyjaźni 117","61-681 Poznań",30603,2,2]
[null,"Przedszkole Nr 134 \"Słoneczny Świat\"","os. Kosmonautów 108","61-642 Poznań",30604,2,2]
[null,"Przedszkole Nr 135 im. Juliana Tuwima","ul. Płowiecka 5","60-277 Poznań",30605,2,2]
[null,"Przedszkole Nr 137","ul. Michałowska 1","60-645 Poznań",30607,2,2]
[null,"Przedszkole Nr 140 \"Majsterklepka\"","os. Przyjaźni 129","61-683 Poznań",30610,2,2]
[null,"Przedszkole Nr 141","ul. Sarmacka 5","61-616 Poznań",30611,2,2]
[null,"Przedszkole Nr 142","ul. Marcina Rożka 9","60-465 Poznań",30612,2,2]
[null,"Przedszkole Nr 144 \"Wesoła Gromada\"","os. Czecha 76","61-288 Poznań",30613,2,2]
[null,"Przedszkole Nr 148","os. Bolesława Chrobrego 121","60-681 Poznań",30614,2,2]
[null,"Przedszkole Nr 150 \"Baśniowy Dom\"","os. Rusa 120","61-245 Poznań",30616,2,2]
[null,"Przedszkole Nr 155 \"Polanie\"","os. Winiary 2","60-654 Poznań",30618,2,2]
[null,"Przedszkole Nr 158 \"Świat Krasnali\"","os. Kosmonautów 107","61-624 Poznań",30619,2,2]
[null,"Przedszkole Nr 160 \"Biały Orzeł\"","os. Tysiąclecia 69","61-255 Poznań",30621,2,2]
[null,"Przedszkole Nr 161 im. Księcia Przemysława","os. Rusa 7","61-245 Poznań",30622,2,2]
[null,"Przedszkole Nr 163","os. Bolesława Chrobrego 106","60-681 Poznań",30623,2,2]
[null,"Przedszkole Nr 171","ul. Podlaska 2","60-622 Poznań",30624,2,2]
[null,"Przedszkole Nr 174 \"Królewna Śnieżka\"","os. Jana III Sobieskiego 108","60-688 Poznań",30625,2,2]
[null,"Przedszkole Nr 175","os. Zwycięstwa 3","61-646 Poznań",30626,2,2]
[null,"Przedszkole Nr 176 \"Bajkowy Domek\"","ul. Saperska 29","61-494 Poznań",30627,2,2]
[null,"Przedszkole Nr 178 \"Kwiaty Polskie\"","os. Orła Białego 72","61-251 Poznań",30628,2,2]
[null,"Przedszkole Nr 180 \"Dzięciołowe Mieszkanie\"","os. Polan 1","61-210 Poznań",30502,2,2]
[null,"Przedszkole Nr 181","os. Zwycięstwa 102","61-645 Poznań",30503,2,2]
[null,"Przedszkole Nr 182 \"Król Elfów\"","os. Jana III Sobieskiego 106","60-688 Poznań",30504,2,2]
[null,"Przedszkole Nr 184","ul. Sióstr Misjonarek 1","61-680 Poznań",30505,2,2]
[null,"Przedszkole Nr 185","os. Wichrowe Wzgórze 118","61-674 Poznań",30506,2,2]
[null,"Przedszkole Nr 186","os. Stare Żegrze 55","61-249 Poznań",30507,2,2]
[null,"Przedszkole Nr 187","os. Władysława Łokietka 4","60-616 Poznań",30508,2,2]
[null,"Przedszkole Nr 188 \"Dębowe Ludki\"","ul. Dębina 15","61-461 Poznań",30509,2,2]
[null,"Przedszkole Nr 189","os. Bolesława Śmiałego 105","60-682 Poznań",30510,2,2]
[null,"Przedszkole Nr 190","os. Bolesława Śmiałego 30","60-682 Poznań",30512,2,2]
[null,"Przedszkole nr 17              "," ul. Głuszyna 206a        ","61-329 Poznań",34868,2,2]
[null,"Poznańskie Ośrodki Sportu i Rekreacji","ul. Chwiałkowskiego 34","61-553 Poznań",484,2,3]
[null,"Izba Wytrzeżwień","ul. Podolańska 45","60-626 Poznań",485,2,4]
[null,"Poznańskie Centrum Edukacji Ustawicznej i Praktycznej","ul.Kanclerska 31","60-327 Poznań",34807,2,5]
[null,"Biblioteka Raczyńskich","Plac Wolności 19","61-739 Poznań",498,3]
[null,"Centrum Kultury Zamek","ul. Św. Marcin 80/82","61-809 Poznań",493,3]
[null,"Centrum Sztuki Dziecka w Poznaniu","ul. Św. Marcin 80/82","61-809 Poznań",497,3]
[1,"Estrada Poznańska","ul. Masztalarska 8","61-767 Poznań",491,3]
[null,"Galeria Miejska \"Arsenał\"","Stary Rynek 3","61-722 Poznań",495,3]
[null,"Muzeum Archeologiczne w Poznaniu","ul. Wodna 27","61-781 Poznań",499,3]
[null,"Dom Kultury \"Stokrotka\"","ul. Cyniowa 11","60-175 Poznań",496,3]
[null,"Poznański Chór Chłopięcy","ul. Cegielskiego 1","61-862 Poznań",33693,3]
[null,"Teatr Animacji w Poznaniu","Aleja Niepodległości 14","61-713 Poznań",489,3]
[null,"Teatr Muzyczny w Poznaniu","ul. Niezłomnych 1e","61-894 Poznań",488,3]
[null,"Teatr Ósmego Dnia","ul. Ratajczaka 44","61-728 Poznań",490,3]
[null,"Teatr Polski w Poznaniu","ul. 27 Grudnia 8/10","61-737 Poznań",492,3]
[null,"Wielkopolskie Muzeum Walk Niepodległościowych","ul. Woźna 12","61-777 Poznań",494,3]
[null,"Poznański Ośrodek Specjalistycznych Usług Medycznych","al. Solidarności 36","61-696 Poznań",30079,4]
[null,"Zakład Opieki Zdrowotnej Poznań - Jeżyce","ul. Mickiewicza 2","60-834 Poznań",30497,4]
[null,"Zakład Opieki Zdrowotnej Poznań - Nowe Miasto","ul. Szwajcarska 3","61-285 Poznań",30034,4]
[null,"Zakład Opieki Zdrowotnej Poznań - Stare Miasto","ul. Szkolna 8/12","61-833 Poznań",30036,4]
[null,"Zakład Opiekuńczo-Leczniczy i Rehabilitacji Medycznej","ul. Mogileńska 42","61-044 Poznań",30039,4]
[null,"POZSERWIS Gospodarstwo Pomocnicze Urzędu Miasta Poznania","pl. Kolegiacki 17","61-841 Poznań",486,5]
[null,"Wydawnictwo Miejskie (gospodarstwo pomocnicze przy Urzędzie Miasta Poznania)","ul. Ratajczaka 44","61-728 Poznań",479,5]
[null,"Zakład Produkcji Ogrodniczej (gospodarstwo pomocnicze przy Zarządzie Zieleni Miejskiej)","ul. Słupska 75/80","60-458 Poznań",30857,5]
[null,"Zakład Robót Drogowych (gospodarstwo pomocnicze przy Zarządzie Dróg Miejskich)","ul. Gdyńska 46/50","61-016 Poznań",30859,5]
[null,"Zakład Usług Parkowo-Leśnych (gospodarstwo pomocnicze przy Zarządzie Zieleni Miejskiej)","ul. Wiankowa 1","61-049 Poznań",30858,5]
[null,"Pływalnia ATLANTIS Gospodarstwo Pomocnicze przy Gimnazjum Nr 12",null,null,35718,5]
[null,"Zarząd Komunalnych Zasobów Lokalowych","ul. Matejki 57","60-770 Poznań",429,6]
[null,"Biblioteka Raczyńskich","Plac Wolności 19","61-739 Poznań",498,6]
[null,"Fundacja Pomocy Socjalnej \"POMOST\"","ul. Słowackiego 19","60-822 Poznań",31868,6]
[null,"Miejskie Przedsiębiorstwo Komunikacyjne Poznań Sp. z o.o.","ul. Głogowska 131/133","60-244 Poznań",30498,6]
[null,"Majątek użyczony jednostkom niepublicznym                      ",null,null,34748,6]

{"sheet":"legenda","index":8,"n_rows":14,"n_cols":11,"rows_kept":14,"cut":false,"hidden":true,"merged":[]}
[null,null,null,null,null,null,null,null,null,null,"Standard"]
[null,null,null,null,null,null,null,null,null,null,"Formatting"]
[null,null,null,null,null,null,null,null,null,null,"Visual Basic"]
[]
[]
[]
[]
[]
[null,null,"Błąd uruchomienia ankiety :"]
[null,null,"Dokument został otwarty z wyłączoną opcją uruchamiania makr !"]
[]
[null,null,"Poprawne zarejestrowanie ankiety wymaga uruchomienia makra."]
[null,null,"Zamknij i ponownie otwórz ten dokument,"]
[null,null," wybierając opcję 'Włącz makra'"]